Body Name,Body,Service Division Label,Service Division Code,Organisational Unit,Expenditure Category,Expenditure Code,CIPFA detailed expediture type,CIPFA detailed expediture code,Narrative,Date,Transaction number,Net Amount,Capital and Revenue,Supplier Name,Supplier ID
Chorley Borough Council,http://statistics.data.gov.uk/id/local-authority/30UE,Capital,Capital,Streetscene & Leisure Contracts,Equipment,3014,Capital Expenditure,Capital,Supply of wheeled bin for residual waste Size 240 litre Colour GREEN,17/04/2013,88137,"12,394.80",Capital,A&C Weber UK Ltd,53284
Chorley Borough Council,http://statistics.data.gov.uk/id/local-authority/30UE,Capital,Capital,Streetscene & Leisure Contracts,Equipment,3014,Capital Expenditure,Capital,Supply of wheeled bins for Recycling Size 240 litre Colour BLUE,17/04/2013,88137,"12,394.80",Capital,A&C Weber UK Ltd,53284
Chorley Borough Council,http://statistics.data.gov.uk/id/local-authority/30UE,Capital,Capital,Streetscene & Leisure Contracts,Equipment,3014,Capital Expenditure,Capital,Supply of wheeled bin for Food & Garden waste Size 240 litre Colour BROWN,17/04/2013,88137,"12,394.80",Capital,A&C Weber UK Ltd,53284
Chorley Borough Council,http://statistics.data.gov.uk/id/local-authority/30UE,Democratic Represent and  Mgnt,1007,Streetscene & Leisure Contracts,External Contractor - Trust or Charity,50008,Private Contractors,5042,ASLC CGSC Management Fee April 2013,17/04/2013,88088,"28,043.32",Revenue,Active Nation UK Ltd,17144
Chorley Borough Council,http://statistics.data.gov.uk/id/local-authority/30UE,Democratic Represent and  Mgnt,1007,Streetscene & Leisure Contracts,External Contractor - Trust or Charity,50008,Private Contractors,5042,Project Management Costs,17/04/2013,88088,"2,318.89",Revenue,Active Nation UK Ltd,17144
Chorley Borough Council,http://statistics.data.gov.uk/id/local-authority/30UE,Democratic Represent and  Mgnt,1007,Streetscene & Leisure Contracts,External Contractor - Trust or Charity,50008,Private Contractors,5042,Brinscall Management Fee April 2013,17/04/2013,88088,"3,669.69",Revenue,Active Nation UK Ltd,17144
Chorley Borough Council,http://statistics.data.gov.uk/id/local-authority/30UE,Community Development,1097,Governance,Grants To Other Organisations,40127,Grants and Subscriptions,5031,Community Grant Fund 2012 13,12/04/2013,88073,500.00,Revenue,Adlington Luncheon Club,59141
Chorley Borough Council,http://statistics.data.gov.uk/id/local-authority/30UE,Precepts and Collection Fund,Precepts,"Customer, ICT & Transactional",Parish Precept,2040,Precepts & Collection Fund,Precept,Precept,10/04/2013,87984,"15,684.00",Revenue,Adlington Town Council,17626
Chorley Borough Council,http://statistics.data.gov.uk/id/local-authority/30UE,Precepts and Collection Fund,Precepts,"Customer, ICT & Transactional",Parish Precept,2040,Precepts & Collection Fund,Precept,Top up,10/04/2013,87984,"1,816.00",Revenue,Adlington Town Council,17626
Chorley Borough Council,http://statistics.data.gov.uk/id/local-authority/30UE,Unapportionable Central OHeads,1009,Governance,Fire Alarms,20072,Fixtures and Fittings,5010,Upgrade of fire detectors in the basement of the Town Hall,10/04/2013,87928,"3,704.19",Revenue,ADT Fire & Security,16645
Chorley Borough Council,http://statistics.data.gov.uk/id/local-authority/30UE,Unapportionable Central OHeads,1009,Governance,Burglar Alarms & Security Systems,20075,Fixtures and Fittings,5010,Attendance of engineer at the Town Hall on 01.03.13 Card Access System faulty equipment,10/04/2013,87960,848.88,Revenue,ADT Fire & Security,16645
Chorley Borough Council,http://statistics.data.gov.uk/id/local-authority/30UE,Unapportionable Central OHeads,1009,Governance,Burglar Alarms & Security Systems,20075,Fixtures and Fittings,5010,Maintenance of the access control system at the Town Hall,10/04/2013,87962,568.60,Revenue,ADT Fire & Security,16645
Chorley Borough Council,http://statistics.data.gov.uk/id/local-authority/30UE,Service Management & Support,1009,Streetscene & Leisure Contracts,Supplies & Consumables -Street Cleansing,40235,"Equipment, Furniture & Materia",5023,Supply side skids for Schmidt Swingo 250 6 left hand side 6 right hand side 6 rear skid,24/04/2013,88076,831.25,Revenue,Aebi Schmidt UK Ltd,17287
Chorley Borough Council,http://statistics.data.gov.uk/id/local-authority/30UE,Community Development,1097,Policy & Performance,Core Funding Grants,40133,Grants and Subscriptions,5031,Core Funding 2013 14,24/04/2013,88146,"10,000.00",Revenue,Age UK,21252
Chorley Borough Council,http://statistics.data.gov.uk/id/local-authority/30UE,Capital,Capital,Housing,Grants,3002,Capital Expenditure,Capital,Capital Works  Disable Facility Grant,12/04/2013,87853,"3,372.00",Capital,AJS Joinery and Building Contractor,18195
Chorley Borough Council,http://statistics.data.gov.uk/id/local-authority/30UE,Economic Development,1096,Economic Development,Grants To Other Organisations,40127,Grants and Subscriptions,5031,Starting in Business Grant  Capital Expenditure,24/04/2013,88216,367.20,Revenue,NAME REDACTED,59235
Chorley Borough Council,http://statistics.data.gov.uk/id/local-authority/30UE,Unapportionable Central OHeads,1009,Governance,Uniforms,40039,"Clothing, Uniforms and Laundry",5025,Uniforms for Civic Services,10/04/2013,87930,409.85,Revenue,Alexandra,21752
Chorley Borough Council,http://statistics.data.gov.uk/id/local-authority/30UE,Unapportionable Central OHeads,1009,Governance,Uniforms,40039,"Clothing, Uniforms and Laundry",5025,Uniforms for Civic Services,10/04/2013,87932,421.81,Revenue,Alexandra,21752
Chorley Borough Council,http://statistics.data.gov.uk/id/local-authority/30UE,Unapportionable Central OHeads,1009,"Customer, ICT & Transactional",Bank Charges,40151,Miscellaneous Expenses,5034,Allpay invoices Scheme CHBC,24/04/2013,87860,705.70,Revenue,Allpay Net Ltd,17242
Chorley Borough Council,http://statistics.data.gov.uk/id/local-authority/30UE,Unapportionable Central OHeads,1009,"Customer, ICT & Transactional",Bank Charges,40151,Miscellaneous Expenses,5034,Allpay invoices Scheme CHBC,24/04/2013,87860,43.01,Revenue,Allpay Net Ltd,17242
Chorley Borough Council,http://statistics.data.gov.uk/id/local-authority/30UE,Corporate Management,1008,Shared Service Arrangement,Car Leasing Payment,14100,Direct Employee Expenses,5001,Vehicle Leasing,05/04/2013,87875,"2,953.09",Revenue,Alphabet (Uk) Fleet Management Ltd,16651
Chorley Borough Council,http://statistics.data.gov.uk/id/local-authority/30UE,Corporate Management,1008,Shared Service Arrangement,Car Leasing Payment,14100,Direct Employee Expenses,5001,Vehicle Leasing,05/04/2013,87875,241.05,Revenue,Alphabet (Uk) Fleet Management Ltd,16651
Chorley Borough Council,http://statistics.data.gov.uk/id/local-authority/30UE,Unapportionable Central OHeads,1009,Shared Service Arrangement,Car Leasing Payment,14100,Direct Employee Expenses,5001,Vehicle Leasing,05/04/2013,87875,"2,498.02",Revenue,Alphabet (Uk) Fleet Management Ltd,16651
Chorley Borough Council,http://statistics.data.gov.uk/id/local-authority/30UE,Unapportionable Central OHeads,1009,Shared Service Arrangement,Car Leasing Payment,14100,Direct Employee Expenses,5001,Vehicle Leasing,05/04/2013,87875,200.01,Revenue,Alphabet (Uk) Fleet Management Ltd,16651
Chorley Borough Council,http://statistics.data.gov.uk/id/local-authority/30UE,Economic Development,1096,Economic Development,Cleaning Materials,40019,"Equipment, Furniture & Materia",5023,Selection of products as per list to be emailed through,10/04/2013,87738,440.65,Revenue,Amtoll Ltd,21738
Chorley Borough Council,http://statistics.data.gov.uk/id/local-authority/30UE,Economic Development,1096,Economic Development,Cleaning Materials,40019,"Equipment, Furniture & Materia",5023,Selection of products as per list to be emailed through,24/04/2013,88202,647.94,Revenue,Amtoll Ltd,21738
Chorley Borough Council,http://statistics.data.gov.uk/id/local-authority/30UE,Precepts and Collection Fund,Precepts,"Customer, ICT & Transactional",Parish Precept,2040,Precepts & Collection Fund,Precept,Precept,10/04/2013,87983,"4,406.00",Revenue,Anderton Parish Council,18125
Chorley Borough Council,http://statistics.data.gov.uk/id/local-authority/30UE,Precepts and Collection Fund,Precepts,"Customer, ICT & Transactional",Parish Precept,2040,Precepts & Collection Fund,Precept,Top up,10/04/2013,87983,294.00,Revenue,Anderton Parish Council,18125
Chorley Borough Council,http://statistics.data.gov.uk/id/local-authority/30UE,Service Management & Support,1009,Streetscene & Leisure Contracts,Protective Clothing,40040,"Clothing, Uniforms and Laundry",5025,Supply Fleece No 1043600 C/W Chorley logo size medium,24/04/2013,88165,84.00,Revenue,Arco Limited,17458
Chorley Borough Council,http://statistics.data.gov.uk/id/local-authority/30UE,Service Management & Support,1009,Streetscene & Leisure Contracts,Protective Clothing,40040,"Clothing, Uniforms and Laundry",5025,Supply fleece C/W with Chorley Logo No 1043600 size Large,24/04/2013,88165,67.20,Revenue,Arco Limited,17458
Chorley Borough Council,http://statistics.data.gov.uk/id/local-authority/30UE,Service Management & Support,1009,Streetscene & Leisure Contracts,Protective Clothing,40040,"Clothing, Uniforms and Laundry",5025,Supply fleece size small C/W Chorley Council logo No 1043600 size small,24/04/2013,88165,67.20,Revenue,Arco Limited,17458
Chorley Borough Council,http://statistics.data.gov.uk/id/local-authority/30UE,Service Management & Support,1009,Streetscene & Leisure Contracts,Protective Clothing,40040,"Clothing, Uniforms and Laundry",5025,Logo,24/04/2013,88165,52.00,Revenue,Arco Limited,17458
Chorley Borough Council,http://statistics.data.gov.uk/id/local-authority/30UE,Community Development,1097,Shared Service Arrangement,Car Leasing Payment,14100,Direct Employee Expenses,5001,Vehicle Leasing,19/04/2013,88148,"3,516.00",Revenue,Arnold Clark Finance Ltd,20685
Chorley Borough Council,http://statistics.data.gov.uk/id/local-authority/30UE,Community Development,1097,Shared Service Arrangement,Car Leasing Payment,14100,Direct Employee Expenses,5001,Vehicle Leasing,19/04/2013,88148,351.60,Revenue,Arnold Clark Finance Ltd,20685
Chorley Borough Council,http://statistics.data.gov.uk/id/local-authority/30UE,Unapportionable Central OHeads,1009,Shared Service Arrangement,Car Leasing Payment,14100,Direct Employee Expenses,5001,Vehicle Leasing,19/04/2013,88149,"3,132.00",Revenue,Arnold Clark Finance Ltd,20685
Chorley Borough Council,http://statistics.data.gov.uk/id/local-authority/30UE,Unapportionable Central OHeads,1009,Shared Service Arrangement,Car Leasing Payment,14100,Direct Employee Expenses,5001,Vehicle Leasing,19/04/2013,88149,313.20,Revenue,Arnold Clark Finance Ltd,20685
Chorley Borough Council,http://statistics.data.gov.uk/id/local-authority/30UE,Planning Policy,1092,Shared Service Arrangement,Car Leasing Payment,14100,Direct Employee Expenses,5001,Vehicle Leaisng,19/04/2013,88150,"3,672.00",Revenue,Arnold Clark Finance Ltd,20685
Chorley Borough Council,http://statistics.data.gov.uk/id/local-authority/30UE,Planning Policy,1092,Shared Service Arrangement,Car Leasing Payment,14100,Direct Employee Expenses,5001,Vehicle Leaisng,19/04/2013,88150,367.10,Revenue,Arnold Clark Finance Ltd,20685
Chorley Borough Council,http://statistics.data.gov.uk/id/local-authority/30UE,Central Support Services,1009,Shared Service Arrangement,Car Leasing Payment,14100,Direct Employee Expenses,5001,Vehicle Leasing,19/04/2013,88151,"3,900.00",Revenue,Arnold Clark Finance Ltd,20685
Chorley Borough Council,http://statistics.data.gov.uk/id/local-authority/30UE,Central Support Services,1009,Shared Service Arrangement,Car Leasing Payment,14100,Direct Employee Expenses,5001,Vehicle Leasing,19/04/2013,88151,390.00,Revenue,Arnold Clark Finance Ltd,20685
Chorley Borough Council,http://statistics.data.gov.uk/id/local-authority/30UE,Community Development,1097,Policy & Performance,Core Funding Grants,40133,Grants and Subscriptions,5031,Core Funding 2013 14,17/04/2013,88050,"10,000.00",Revenue,Asian Womens Forum,20623
Chorley Borough Council,http://statistics.data.gov.uk/id/local-authority/30UE,Unapportionable Central OHeads,1009,"Customer, ICT & Transactional",Computer Software-Maintenance,40107,Communication and Computing,5028,Annual Support CCP Unified Desktop  April 2013 to March 2014,24/04/2013,88188,"7,972.17",Revenue,Asidua GB Ltd,22000
Chorley Borough Council,http://statistics.data.gov.uk/id/local-authority/30UE,Unapportionable Central OHeads,1009,"Customer, ICT & Transactional",Computer Software-Maintenance,40107,Communication and Computing,5028,Customer Contact Platform  Annual Support April 2013 to March 2014,24/04/2013,88189,"2,169.30",Revenue,Asidua GB Ltd,22000
Chorley Borough Council,http://statistics.data.gov.uk/id/local-authority/30UE,Precepts and Collection Fund,Precepts,"Customer, ICT & Transactional",Parish Precept,2040,Precepts & Collection Fund,Precept,Precept,10/04/2013,87982,"19,103.00",Revenue,Astley Village Parish Council,17642
Chorley Borough Council,http://statistics.data.gov.uk/id/local-authority/30UE,Precepts and Collection Fund,Precepts,"Customer, ICT & Transactional",Parish Precept,2040,Precepts & Collection Fund,Precept,Top up,10/04/2013,87982,"3,877.00",Revenue,Astley Village Parish Council,17642
Chorley Borough Council,http://statistics.data.gov.uk/id/local-authority/30UE,Corporate Management,1008,Health Environment & Neighbourhoods,Taxi Testing & Vehicle Safety Report,40234,Services,5027,MOT,05/04/2013,87862,493.65,Revenue,Autocentre LTD,21651
Chorley Borough Council,http://statistics.data.gov.uk/id/local-authority/30UE,Corporate Management,1008,Health Environment & Neighbourhoods,Taxi Testing & Vehicle Safety Report,40234,Services,5027,MOT,05/04/2013,87862,74.97,Revenue,Autocentre LTD,21651
Chorley Borough Council,http://statistics.data.gov.uk/id/local-authority/30UE,Capital,Capital,Streetscene & Leisure Contracts,Main Contractor,3007,Capital Expenditure,Capital,2.5% retention for works at Clayton Green Sports Centre ,10/04/2013,87903,"2,860.00",Capital,Bailey Construction (NW) Ltd,58139
Chorley Borough Council,http://statistics.data.gov.uk/id/local-authority/30UE,Capital,Capital,Streetscene & Leisure Contracts,Main Contractor,3007,Capital Expenditure,Capital,Works completed to Clayton Green Sports Centre - cavity trays and synthetic lead flashing,10/04/2013,87903,"8,644.09",Capital,Bailey Construction (NW) Ltd,58139
Chorley Borough Council,http://statistics.data.gov.uk/id/local-authority/30UE,Unapportionable Central OHeads,1009,"Customer, ICT & Transactional",Consultants` Fees,40077,Services,5027,Support Services as agreed with Customer ICT and Transactional Services in February,05/04/2013,87890,900.00,Revenue,REDACTED PERSONAL DATA,22238
Chorley Borough Council,http://statistics.data.gov.uk/id/local-authority/30UE,Unapportionable Central OHeads,1009,"Customer, ICT & Transactional",Consultants` Fees,40077,Services,5027,Support Services as agreed with Policy and Communications in February,05/04/2013,87890,750.00,Revenue,REDACTED PERSONAL DATA,22238
Chorley Borough Council,http://statistics.data.gov.uk/id/local-authority/30UE,Unapportionable Central OHeads,1009,"Customer, ICT & Transactional",Consultants` Fees,40077,Services,5027,Support Services as agreed with Customer ICT and Transactional Services 8 days in March,05/04/2013,87891,"1,200.00",Revenue,REDACTED PERSONAL DATA,22238
Chorley Borough Council,http://statistics.data.gov.uk/id/local-authority/30UE,Unapportionable Central OHeads,1009,"Customer, ICT & Transactional",Consultants` Fees,40077,Services,5027,Support Services as agreed with Policy and Communications 7.5 days in March,05/04/2013,87891,"1,125.00",Revenue,REDACTED PERSONAL DATA,22238
Chorley Borough Council,http://statistics.data.gov.uk/id/local-authority/30UE,Corporate Management,1008,HR & Org. Development,Operational Employees Salaries,10000,Direct Employee Expenses,5001,Ad Hoc Payment,05/04/2013,87828,"23,625.00",Revenue,Blackpool Borough Council,16518
Chorley Borough Council,http://statistics.data.gov.uk/id/local-authority/30UE,Economic Development,1096,Economic Development,Christmas Lights,40179,Miscellaneous Expenses,5034,"Supply & Erect, Maintain & Remove Christmas Lights @ Chorley 2012",17/04/2013,88112,"32,474.00",Revenue,Blackpool Borough Council,16518
Chorley Borough Council,http://statistics.data.gov.uk/id/local-authority/30UE,Capital,Capital,Housing,Grants,3002,Capital Expenditure,Capital,Capital Works - Disable Facility Grant,05/04/2013,87717,"4,033.00",Capital,Bluebell North West Limited,56975
Chorley Borough Council,http://statistics.data.gov.uk/id/local-authority/30UE,Democratic Represent and  Mgnt,1007,Chief Executives Office,Conferences - Members,40121,Expenses,5030,"Outstanding balance for Accommodation at Midland Hotel, Manchester LGA Conference",12/04/2013,87907,322.50,Revenue,Bournemouth Convention Bureau LTD,22603
Chorley Borough Council,http://statistics.data.gov.uk/id/local-authority/30UE,Precepts and Collection Fund,Precepts,"Customer, ICT & Transactional",Parish Precept,2040,Precepts & Collection Fund,Precept,Precept,10/04/2013,87981,"9,716.00",Revenue,Bretherton Parish Council,17108
Chorley Borough Council,http://statistics.data.gov.uk/id/local-authority/30UE,Precepts and Collection Fund,Precepts,"Customer, ICT & Transactional",Parish Precept,2040,Precepts & Collection Fund,Precept,Top up,10/04/2013,87981,414.00,Revenue,Bretherton Parish Council,17108
Chorley Borough Council,http://statistics.data.gov.uk/id/local-authority/30UE,Precepts and Collection Fund,Precepts,"Customer, ICT & Transactional",Parish Precept,2040,Precepts & Collection Fund,Precept,Precept,10/04/2013,87980,"6,527.00",Revenue,Brindle Parish Council,17023
Chorley Borough Council,http://statistics.data.gov.uk/id/local-authority/30UE,Precepts and Collection Fund,Precepts,"Customer, ICT & Transactional",Parish Precept,2040,Precepts & Collection Fund,Precept,Top up,10/04/2013,87980,273.00,Revenue,Brindle Parish Council,17023
Chorley Borough Council,http://statistics.data.gov.uk/id/local-authority/30UE,Community Development,1097,Governance,Grants To Other Organisations,40127,Grants and Subscriptions,5031,Community Grant Fund 2012/13,05/04/2013,87807,250.00,Revenue,Brinscall & District Drop In,59019
Chorley Borough Council,http://statistics.data.gov.uk/id/local-authority/30UE,Service Management & Support,1009,Streetscene & Leisure Contracts,Supplies-Grounds Maintenance,40025,"Equipment, Furniture & Materia",5023,Supply 35 No of A141 sheet mesh to be delivered to Yarrow Bridge depot,10/04/2013,87935,787.50,Revenue,Brinscall Building & Plumbing Merchants,17112
Chorley Borough Council,http://statistics.data.gov.uk/id/local-authority/30UE,Community Development,1097,Chief Executives Office,Gas,20014,Energy Costs,5006,Accounting ADV Svcs,12/04/2013,88040,86.36,Revenue,British Gas Business,22242
Chorley Borough Council,http://statistics.data.gov.uk/id/local-authority/30UE,Unapportionable Central OHeads,1009,Chief Executives Office,Gas,20014,Energy Costs,5006,Bengal Street,12/04/2013,88040,322.34,Revenue,British Gas Business,22242
Chorley Borough Council,http://statistics.data.gov.uk/id/local-authority/30UE,Democratic Represent and  Mgnt,1007,Chief Executives Office,Gas,20014,Energy Costs,5006,Coach House,12/04/2013,88040,617.31,Revenue,British Gas Business,22242
Chorley Borough Council,http://statistics.data.gov.uk/id/local-authority/30UE,Democratic Represent and  Mgnt,1007,Chief Executives Office,Gas,20014,Energy Costs,5006,Astley Vill Comm Ctr,12/04/2013,88040,435.32,Revenue,British Gas Business,22242
Chorley Borough Council,http://statistics.data.gov.uk/id/local-authority/30UE,Democratic Represent and  Mgnt,1007,Chief Executives Office,Gas,20014,Energy Costs,5006,Eaves Green Comm Ctr,12/04/2013,88040,364.18,Revenue,British Gas Business,22242
Chorley Borough Council,http://statistics.data.gov.uk/id/local-authority/30UE,Democratic Represent and  Mgnt,1007,Chief Executives Office,Gas,20014,Energy Costs,5006,Yarrow Valley Park,12/04/2013,88040,151.43,Revenue,British Gas Business,22242
Chorley Borough Council,http://statistics.data.gov.uk/id/local-authority/30UE,Democratic Represent and  Mgnt,1007,Chief Executives Office,Gas,20014,Energy Costs,5006,Astley Cottage,12/04/2013,88040,280.55,Revenue,British Gas Business,22242
Chorley Borough Council,http://statistics.data.gov.uk/id/local-authority/30UE,Democratic Represent and  Mgnt,1007,Chief Executives Office,Gas,20014,Energy Costs,5006,Clayton Brook Comm Ctr,12/04/2013,88040,328.32,Revenue,British Gas Business,22242
Chorley Borough Council,http://statistics.data.gov.uk/id/local-authority/30UE,Democratic Represent and  Mgnt,1007,Chief Executives Office,Gas,20014,Energy Costs,5006,Astley Hall Farm Hse,12/04/2013,88040,144.71,Revenue,British Gas Business,22242
Chorley Borough Council,http://statistics.data.gov.uk/id/local-authority/30UE,Unapportionable Central OHeads,1009,Chief Executives Office,Gas,20014,Energy Costs,5006,Town Hall,12/04/2013,88040,"2,045.23",Revenue,British Gas Business,22242
Chorley Borough Council,http://statistics.data.gov.uk/id/local-authority/30UE,Democratic Represent and  Mgnt,1007,Chief Executives Office,Gas,20014,Energy Costs,5006,Astley Hall,12/04/2013,88040,"2,258.15",Revenue,British Gas Business,22242
Chorley Borough Council,http://statistics.data.gov.uk/id/local-authority/30UE,Homelessness,1075,Chief Executives Office,Gas,20014,Energy Costs,5006,Cotswold house,12/04/2013,88040,"1,688.15",Revenue,British Gas Business,22242
Chorley Borough Council,http://statistics.data.gov.uk/id/local-authority/30UE,Unapportionable Central OHeads,1009,Chief Executives Office,Gas,20014,Energy Costs,5006,Union Street,12/04/2013,88040,"1,679.59",Revenue,British Gas Business,22242
Chorley Borough Council,http://statistics.data.gov.uk/id/local-authority/30UE,Unapportionable Central OHeads,1009,"Customer, ICT & Transactional",Network Line Rental,40248,Communication and Computing,5028,Private Circuit Bill,05/04/2013,87764,304.24,Revenue,British Telecommunications Plc,17131
Chorley Borough Council,http://statistics.data.gov.uk/id/local-authority/30UE,Unapportionable Central OHeads,1009,"Customer, ICT & Transactional",Network Line Rental,40248,Communication and Computing,5028,Private Circuit Bill,05/04/2013,87799,608.48,Revenue,British Telecommunications Plc,17131
Chorley Borough Council,http://statistics.data.gov.uk/id/local-authority/30UE,Unapportionable Central OHeads,1009,"Customer, ICT & Transactional",Network Line Rental,40248,Communication and Computing,5028,Private Circuit Bill,12/04/2013,87939,304.24,Revenue,British Telecommunications Plc,17131
Chorley Borough Council,http://statistics.data.gov.uk/id/local-authority/30UE,Unapportionable Central OHeads,1009,"Customer, ICT & Transactional",Network Line Rental,40248,Communication and Computing,5028,Private Circuit Bill,12/04/2013,87940,298.50,Revenue,British Telecommunications Plc,17131
Chorley Borough Council,http://statistics.data.gov.uk/id/local-authority/30UE,Democratic Represent and  Mgnt,1007,"Customer, ICT & Transactional",Internet Charges,40104,Communication and Computing,5028,Charges,24/04/2013,88157,789.00,Revenue,British Telecommunications Plc,17131
Chorley Borough Council,http://statistics.data.gov.uk/id/local-authority/30UE,Unapportionable Central OHeads,1009,"Customer, ICT & Transactional",Internet Charges,40104,Communication and Computing,5028,Charges,24/04/2013,88157,57.00,Revenue,British Telecommunications Plc,17131
Chorley Borough Council,http://statistics.data.gov.uk/id/local-authority/30UE,Homelessness,1075,"Customer, ICT & Transactional",Internet Charges,40104,Communication and Computing,5028,Charges,24/04/2013,88157,19.00,Revenue,British Telecommunications Plc,17131
Chorley Borough Council,http://statistics.data.gov.uk/id/local-authority/30UE,Democratic Represent and  Mgnt,1007,"Customer, ICT & Transactional",Internet Charges,40104,Communication and Computing,5028,Charges,24/04/2013,88157,31.00,Revenue,British Telecommunications Plc,17131
Chorley Borough Council,http://statistics.data.gov.uk/id/local-authority/30UE,Community Development,1097,Health Environment & Neighbourhoods,Rent/Hire Of Premises,20017,Premises Rents,5007,Coach Hire,05/04/2013,87865,340.00,Revenue,BSS Coach Hire,58656
Chorley Borough Council,http://statistics.data.gov.uk/id/local-authority/30UE,Democratic Represent and  Mgnt,1007,Streetscene & Leisure Contracts,Grounds Maintenance Contractor,20043,Grounds Maintenance Costs,5013,Maintenance work to Westway Ponds and Blainscough Wood Nature Reserves over 5 days,10/04/2013,87745,"2,000.00",Revenue,BTCV,16614
Chorley Borough Council,http://statistics.data.gov.uk/id/local-authority/30UE,Community Development,1097,Governance,Grants To Other Organisations,40127,Grants and Subscriptions,5031,Community Grant Fund 2012/13,12/04/2013,88075,450.00,Revenue,Buckshaw Village Scout Group,59139
Chorley Borough Council,http://statistics.data.gov.uk/id/local-authority/30UE,Unapportionable Central OHeads,1009,Policy & Performance,Promotional Expenses,40159,Miscellaneous Expenses,5034,500 x 1.5cm Flat Polyester Lanyards.1 colour print 1 side repeated entire length of 90cm,05/04/2013,87790,270.00,Revenue,Buyking Ltd T/A We Brand It,58648
Chorley Borough Council,http://statistics.data.gov.uk/id/local-authority/30UE,Development Control,1091,Planning,Computer Consumables,40099,Communication and Computing,5028,Machine Pro 510 digital meter charges Serial no 3070008098/1125477549,12/04/2013,88034,296.57,Revenue,Bytes Document Solutions,20052
Chorley Borough Council,http://statistics.data.gov.uk/id/local-authority/30UE,Service Management & Support,1009,Streetscene & Leisure Contracts,Vehicle Maintenance,30045,Direct Transport Costs,5016,Carryout repairs to bad starting on DK07LDE has required No W34229,05/04/2013,87740,361.96,Revenue,C P Davidson & Sons Ltd,21093
Chorley Borough Council,http://statistics.data.gov.uk/id/local-authority/30UE,Unapportionable Central OHeads,1009,Shared Service Arrangement,Employee Related Insurance,18003,Indirect Employee Expenses,5002,Life insurance,19/04/2013,88153,726.11,Revenue,Canada Life,22284
Chorley Borough Council,http://statistics.data.gov.uk/id/local-authority/30UE,Democratic Represent and  Mgnt,1007,Chief Executives Office,Refuse Collection,20037,Cleaning and Domestic Supplies,5012,60 Litre Medical Unit - Clayton Brook Village Hall,10/04/2013,88015,5.85,Revenue,Cannon Hygiene Limited,18158
Chorley Borough Council,http://statistics.data.gov.uk/id/local-authority/30UE,Democratic Represent and  Mgnt,1007,Chief Executives Office,Refuse Collection,20037,Cleaning and Domestic Supplies,5012,Concept Hygiene Unit - Clayton Brook Village Hall,10/04/2013,88015,3.12,Revenue,Cannon Hygiene Limited,18158
Chorley Borough Council,http://statistics.data.gov.uk/id/local-authority/30UE,Unapportionable Central OHeads,1009,Chief Executives Office,Refuse Collection,20037,Cleaning and Domestic Supplies,5012,60 Litre Medical Unit - Town Hall,10/04/2013,88015,12.75,Revenue,Cannon Hygiene Limited,18158
Chorley Borough Council,http://statistics.data.gov.uk/id/local-authority/30UE,Unapportionable Central OHeads,1009,Chief Executives Office,Refuse Collection,20037,Cleaning and Domestic Supplies,5012,Concept Hygiene Unit - Town Hall,10/04/2013,88015,13.53,Revenue,Cannon Hygiene Limited,18158
Chorley Borough Council,http://statistics.data.gov.uk/id/local-authority/30UE,Unapportionable Central OHeads,1009,Chief Executives Office,Refuse Collection,20037,Cleaning and Domestic Supplies,5012,Concept Hygiene Unit (Monthly) - Town Hall,10/04/2013,88015,43.68,Revenue,Cannon Hygiene Limited,18158
Chorley Borough Council,http://statistics.data.gov.uk/id/local-authority/30UE,Homelessness,1075,Chief Executives Office,Refuse Collection,20037,Cleaning and Domestic Supplies,5012,60 Litre Medical Unit - Cotswold House,10/04/2013,88015,25.47,Revenue,Cannon Hygiene Limited,18158
Chorley Borough Council,http://statistics.data.gov.uk/id/local-authority/30UE,Democratic Represent and  Mgnt,1007,Chief Executives Office,Refuse Collection,20037,Cleaning and Domestic Supplies,5012,Ctah Spray Frag Unit White - Astley Hall,10/04/2013,88015,107.91,Revenue,Cannon Hygiene Limited,18158
Chorley Borough Council,http://statistics.data.gov.uk/id/local-authority/30UE,Democratic Represent and  Mgnt,1007,Chief Executives Office,Refuse Collection,20037,Cleaning and Domestic Supplies,5012,60 Litre Medical Unit - Astley Hall,10/04/2013,88015,95.04,Revenue,Cannon Hygiene Limited,18158
Chorley Borough Council,http://statistics.data.gov.uk/id/local-authority/30UE,Democratic Represent and  Mgnt,1007,Chief Executives Office,Refuse Collection,20037,Cleaning and Domestic Supplies,5012,Concept Hygiene Unit - Astley Hall,10/04/2013,88015,63.45,Revenue,Cannon Hygiene Limited,18158
Chorley Borough Council,http://statistics.data.gov.uk/id/local-authority/30UE,Democratic Represent and  Mgnt,1007,Chief Executives Office,Refuse Collection,20037,Cleaning and Domestic Supplies,5012,60 Litre Medical Unit - Astley Village Community Centre,10/04/2013,88015,50.97,Revenue,Cannon Hygiene Limited,18158
Chorley Borough Council,http://statistics.data.gov.uk/id/local-authority/30UE,Democratic Represent and  Mgnt,1007,Chief Executives Office,Refuse Collection,20037,Cleaning and Domestic Supplies,5012,Concept Hygiene Unit - Astley Village Community Centre,10/04/2013,88015,3.12,Revenue,Cannon Hygiene Limited,18158
Chorley Borough Council,http://statistics.data.gov.uk/id/local-authority/30UE,Democratic Represent and  Mgnt,1007,Chief Executives Office,Refuse Collection,20037,Cleaning and Domestic Supplies,5012,60 Litre Medical Unit - Eaves Green Community Centre,10/04/2013,88015,12.75,Revenue,Cannon Hygiene Limited,18158
Chorley Borough Council,http://statistics.data.gov.uk/id/local-authority/30UE,Democratic Represent and  Mgnt,1007,Chief Executives Office,Refuse Collection,20037,Cleaning and Domestic Supplies,5012,Concept Hygiene Unit - Eaves Green Community Centre,10/04/2013,88015,3.12,Revenue,Cannon Hygiene Limited,18158
Chorley Borough Council,http://statistics.data.gov.uk/id/local-authority/30UE,Corporate Management,1008,Chief Executives Office,Refuse Collection,20037,Cleaning and Domestic Supplies,5012,Milliken Standard Solution Dyed - Public Conveniences Market Place,10/04/2013,88015,117.54,Revenue,Cannon Hygiene Limited,18158
Chorley Borough Council,http://statistics.data.gov.uk/id/local-authority/30UE,Corporate Management,1008,Chief Executives Office,Refuse Collection,20037,Cleaning and Domestic Supplies,5012,60 Litre Medical Unit - Public Conveniences Market Place,10/04/2013,88015,38.22,Revenue,Cannon Hygiene Limited,18158
Chorley Borough Council,http://statistics.data.gov.uk/id/local-authority/30UE,Corporate Management,1008,Chief Executives Office,Refuse Collection,20037,Cleaning and Domestic Supplies,5012,Concept Hygiene Unit - Public Conveniences Market Place,10/04/2013,88015,54.09,Revenue,Cannon Hygiene Limited,18158
Chorley Borough Council,http://statistics.data.gov.uk/id/local-authority/30UE,Corporate Management,1008,Chief Executives Office,Refuse Collection,20037,Cleaning and Domestic Supplies,5012,SV2 Dual Panty Pad Vendor - Public Conveniences Market Place,10/04/2013,88015,20.67,Revenue,Cannon Hygiene Limited,18158
Chorley Borough Council,http://statistics.data.gov.uk/id/local-authority/30UE,Unapportionable Central OHeads,1009,Chief Executives Office,Refuse Collection,20037,Cleaning and Domestic Supplies,5012,60 Litre Medical Unit - Bengal Street,10/04/2013,88015,12.75,Revenue,Cannon Hygiene Limited,18158
Chorley Borough Council,http://statistics.data.gov.uk/id/local-authority/30UE,Unapportionable Central OHeads,1009,Chief Executives Office,Refuse Collection,20037,Cleaning and Domestic Supplies,5012,Concept Hygiene Unit - Bengal Street,10/04/2013,88015,12.48,Revenue,Cannon Hygiene Limited,18158
Chorley Borough Council,http://statistics.data.gov.uk/id/local-authority/30UE,Democratic Represent and  Mgnt,1007,Chief Executives Office,Refuse Collection,20037,Cleaning and Domestic Supplies,5012,60 Litre Medical Unit - Yarrow Valley Visitor Centre,10/04/2013,88015,12.75,Revenue,Cannon Hygiene Limited,18158
Chorley Borough Council,http://statistics.data.gov.uk/id/local-authority/30UE,Democratic Represent and  Mgnt,1007,Chief Executives Office,Refuse Collection,20037,Cleaning and Domestic Supplies,5012,Concept Hygiene Unit - Yarrow Valley Visitor Centre,10/04/2013,88015,6.24,Revenue,Cannon Hygiene Limited,18158
Chorley Borough Council,http://statistics.data.gov.uk/id/local-authority/30UE,Unapportionable Central OHeads,1009,Chief Executives Office,Refuse Collection,20037,Cleaning and Domestic Supplies,5012,60 Litre Medical Unit - Union Street,10/04/2013,88015,5.85,Revenue,Cannon Hygiene Limited,18158
Chorley Borough Council,http://statistics.data.gov.uk/id/local-authority/30UE,Unapportionable Central OHeads,1009,Chief Executives Office,Refuse Collection,20037,Cleaning and Domestic Supplies,5012,Concept Hygiene Unit - Union Street,10/04/2013,88015,40.56,Revenue,Cannon Hygiene Limited,18158
Chorley Borough Council,http://statistics.data.gov.uk/id/local-authority/30UE,Unapportionable Central OHeads,1009,"Customer, ICT & Transactional",Printing,40043,"Printing, Stationery & General",5026,GB-505918-OKS,12/04/2013,87857,"4,558.08",Revenue,Canon (UK) Ltd,17492
Chorley Borough Council,http://statistics.data.gov.uk/id/local-authority/30UE,Unapportionable Central OHeads,1009,"Customer, ICT & Transactional",Printing,40043,"Printing, Stationery & General",5026,GB-505928-OKS,12/04/2013,87857,812.91,Revenue,Canon (UK) Ltd,17492
Chorley Borough Council,http://statistics.data.gov.uk/id/local-authority/30UE,Unapportionable Central OHeads,1009,"Customer, ICT & Transactional",Printing,40043,"Printing, Stationery & General",5026,GB-506449-OKS,12/04/2013,87857,382.72,Revenue,Canon (UK) Ltd,17492
Chorley Borough Council,http://statistics.data.gov.uk/id/local-authority/30UE,Housing Benefit Administration,1077,"Customer, ICT & Transactional",IT Software - Annual Licences,40101,Communication and Computing,5028,Invoice 92837988 Software amendments for LHA changes and social sector size criteria,10/04/2013,87888,"4,935.24",Revenue,Capita Business Services Ltd,17151
Chorley Borough Council,http://statistics.data.gov.uk/id/local-authority/30UE,Housing Benefit Administration,1077,"Customer, ICT & Transactional",IT Software - Annual Licences,40101,Communication and Computing,5028,"Technical Annual Maintenance for period 1 April 13 to 31 Mar 14. 13,653 Benefits",10/04/2013,87897,"13,653.00",Revenue,Capita Business Services Ltd,17151
Chorley Borough Council,http://statistics.data.gov.uk/id/local-authority/30UE,Local Tax Collection,1010,"Customer, ICT & Transactional",IT Software - Annual Licences,40101,Communication and Computing,5028,"Technical Annual Maintenance for period 1 April 13 to 31 Mar 14. Council Tax 11,430",10/04/2013,87897,"11,430.00",Revenue,Capita Business Services Ltd,17151
Chorley Borough Council,http://statistics.data.gov.uk/id/local-authority/30UE,Local Tax Collection,1010,"Customer, ICT & Transactional",IT Software - Annual Licences,40101,Communication and Computing,5028,"Technical Annual Maintenance for period 1 April 13 to 31 Mar 14. NDR 6,667",10/04/2013,87897,"6,667.00",Revenue,Capita Business Services Ltd,17151
Chorley Borough Council,http://statistics.data.gov.uk/id/local-authority/30UE,Housing Benefit Administration,1077,"Customer, ICT & Transactional",Computer - Support Services,40111,Communication and Computing,5028,"EOY support for Council tax, Benefits and technical support ",10/04/2013,87905,"1,518.50",Revenue,Capita Business Services Ltd,17151
Chorley Borough Council,http://statistics.data.gov.uk/id/local-authority/30UE,Local Tax Collection,1010,"Customer, ICT & Transactional",Computer - Support Services,40111,Communication and Computing,5028,"EOY support for Benefits, Council tax and technical ",10/04/2013,87905,"1,518.50",Revenue,Capita Business Services Ltd,17151
Chorley Borough Council,http://statistics.data.gov.uk/id/local-authority/30UE,Housing Benefit Administration,1077,"Customer, ICT & Transactional",IT Software - Annual Licences,40101,Communication and Computing,5028,Annual Licence Capita Revs and Bens solution (3rd annual payment),26/04/2013,88178,"2,580.00",Revenue,Capita Business Services Ltd,17151
Chorley Borough Council,http://statistics.data.gov.uk/id/local-authority/30UE,Local Tax Collection,1010,"Customer, ICT & Transactional",IT Software - Annual Licences,40101,Communication and Computing,5028,Annual Licence Capita Revs and Bens solution (3rd annual payment),26/04/2013,88178,"2,160.00",Revenue,Capita Business Services Ltd,17151
Chorley Borough Council,http://statistics.data.gov.uk/id/local-authority/30UE,Local Tax Collection,1010,"Customer, ICT & Transactional",IT Software - Annual Licences,40101,Communication and Computing,5028,Annual Licence Capita Revs and Bens solution (3rd annual payment) ,26/04/2013,88178,"1,260.00",Revenue,Capita Business Services Ltd,17151
Chorley Borough Council,http://statistics.data.gov.uk/id/local-authority/30UE,Housing Benefit Administration,1077,"Customer, ICT & Transactional",IT Software - Annual Licences,40101,Communication and Computing,5028,Third Annual Payment (3/4) Dev. Fund period 11-2014,26/04/2013,88179,"3,953.00",Revenue,Capita Business Services Ltd,17151
Chorley Borough Council,http://statistics.data.gov.uk/id/local-authority/30UE,Local Tax Collection,1010,"Customer, ICT & Transactional",IT Software - Annual Licences,40101,Communication and Computing,5028,Third Annual Payment (3/4) Dev. Fund period 11-2014,26/04/2013,88179,"3,310.00",Revenue,Capita Business Services Ltd,17151
Chorley Borough Council,http://statistics.data.gov.uk/id/local-authority/30UE,Local Tax Collection,1010,"Customer, ICT & Transactional",IT Software - Annual Licences,40101,Communication and Computing,5028,Third Annual Payment (3/4) Dev. Fund period 11-2014,26/04/2013,88179,"1,930.00",Revenue,Capita Business Services Ltd,17151
Chorley Borough Council,http://statistics.data.gov.uk/id/local-authority/30UE,Precepts and Collection Fund,Precepts,"Customer, ICT & Transactional",Parish Precept,2040,Precepts & Collection Fund,Precept,Precept,10/04/2013,87979,"24,655.00",Revenue,Charnock Richard Parish Cncl,16206
Chorley Borough Council,http://statistics.data.gov.uk/id/local-authority/30UE,Precepts and Collection Fund,Precepts,"Customer, ICT & Transactional",Parish Precept,2040,Precepts & Collection Fund,Precept,top up,10/04/2013,87979,345.00,Revenue,Charnock Richard Parish Cncl,16206
Chorley Borough Council,http://statistics.data.gov.uk/id/local-authority/30UE,Community Development,1097,Governance,Grants To Other Organisations,40127,Grants and Subscriptions,5031,Community Grant Fund 2012/13,12/04/2013,88071,500.00,Revenue,Charnock Richard Pre-School,59143
Chorley Borough Council,http://statistics.data.gov.uk/id/local-authority/30UE,Corporate Management,1008,Health Environment & Neighbourhoods,Taxi Testing & Vehicle Safety Report,40234,Services,5027,MOT,05/04/2013,87863,658.20,Revenue,Chorley Autocare Ltd,17110
Chorley Borough Council,http://statistics.data.gov.uk/id/local-authority/30UE,Corporate Management,1008,Health Environment & Neighbourhoods,Taxi Testing & Vehicle Safety Report,40234,Services,5027,MOT,05/04/2013,87863,102.60,Revenue,Chorley Autocare Ltd,17110
Chorley Borough Council,http://statistics.data.gov.uk/id/local-authority/30UE,Community Development,1097,Governance,Grants To Other Organisations,40127,Grants and Subscriptions,5031,Community Grant Fund 2012/13,12/04/2013,88070,250.00,Revenue,Chorley Choral Society,59144
Chorley Borough Council,http://statistics.data.gov.uk/id/local-authority/30UE,Democratic Represent and  Mgnt,1007,Health Environment & Neighbourhoods,Sports Development Initiatives,40186,Miscellaneous Expenses,5034,Chorley Older Peoples Forum payment Blackpool Tower Ballroom,17/04/2013,88066,426.00,Revenue,Chorley Old Peoples Forum,50158
Chorley Borough Council,http://statistics.data.gov.uk/id/local-authority/30UE,Unapportionable Central OHeads,1009,Streetscene & Leisure Contracts,Consultants` Fees,40077,Services,5027,Lease Consultancy Fee 1st April 2013 to 31st March 2014,24/04/2013,88127,500.00,Revenue,Chrystal Consulting,17613
Chorley Borough Council,http://statistics.data.gov.uk/id/local-authority/30UE,Service Management & Support,1009,Streetscene & Leisure Contracts,Transport Operating Leases,30029,Contrct Hire & Operating Lease,5018,Rental 30th March to 29th April 2013 of Schmidt Swingo Compact Sweeper AE55 HKK,19/04/2013,88128,250.00,Revenue,Chrystal Consulting,17613
Chorley Borough Council,http://statistics.data.gov.uk/id/local-authority/30UE,Unapportionable Central OHeads,1009,Shared Service Arrangement,Service Fees,40056,Services,5027,TISonline Full Subscription,12/04/2013,88022,"2,420.00",Revenue,CIPFA Business Ltd,16247
Chorley Borough Council,http://statistics.data.gov.uk/id/local-authority/30UE,Unapportionable Central OHeads,1009,Shared Service Arrangement,Service Fees,40056,Services,5027,TIS Online Full Subscription 01/04/13 - 31/03/14,24/04/2013,88208,"2,420.00",Revenue,CIPFA Business Ltd,16247
Chorley Borough Council,http://statistics.data.gov.uk/id/local-authority/30UE,Unapportionable Central OHeads,1009,Shared Service Arrangement,Computer Software-Maintenance,40107,Communication and Computing,5028,Year 6 - Financials - Web/Budget Modules - Software & Maintenance combined,17/04/2013,88097,"7,933.00",Revenue,Civica UK Limited,17463
Chorley Borough Council,http://statistics.data.gov.uk/id/local-authority/30UE,Economic Development,1096,Economic Development,Grants To Other Organisations,40127,Grants and Subscriptions,5031,Starting in Business Grant - Capital Expenditure,24/04/2013,88154,987.26,Revenue,Clare Byers t/a Trade Route Spice Stop,59025
Chorley Borough Council,http://statistics.data.gov.uk/id/local-authority/30UE,Precepts and Collection Fund,Precepts,"Customer, ICT & Transactional",Parish Precept,2040,Precepts & Collection Fund,Precept,Precept,10/04/2013,87978,"83,782.00",Revenue,Clayton-Le-Woods Parish Coun.,17024
Chorley Borough Council,http://statistics.data.gov.uk/id/local-authority/30UE,Precepts and Collection Fund,Precepts,"Customer, ICT & Transactional",Parish Precept,2040,Precepts & Collection Fund,Precept,Top Up,10/04/2013,87978,"11,458.00",Revenue,Clayton-Le-Woods Parish Coun.,17024
Chorley Borough Council,http://statistics.data.gov.uk/id/local-authority/30UE,Precepts and Collection Fund,Precepts,"Customer, ICT & Transactional",Parish Precept,2040,Precepts & Collection Fund,Precept,Precept,10/04/2013,87977,"68,974.00",Revenue,Coppull Parish Council,17025
Chorley Borough Council,http://statistics.data.gov.uk/id/local-authority/30UE,Precepts and Collection Fund,Precepts,"Customer, ICT & Transactional",Parish Precept,2040,Precepts & Collection Fund,Precept,Top up,10/04/2013,87977,"10,576.00",Revenue,Coppull Parish Council,17025
Chorley Borough Council,http://statistics.data.gov.uk/id/local-authority/30UE,Precepts and Collection Fund,Precepts,"Customer, ICT & Transactional",Parish Precept,2040,Precepts & Collection Fund,Precept,Precept,10/04/2013,87976,"20,070.00",Revenue,Croston Parish Council,17026
Chorley Borough Council,http://statistics.data.gov.uk/id/local-authority/30UE,Precepts and Collection Fund,Precepts,"Customer, ICT & Transactional",Parish Precept,2040,Precepts & Collection Fund,Precept,Top Up,10/04/2013,87976,"1,440.00",Revenue,Croston Parish Council,17026
Chorley Borough Council,http://statistics.data.gov.uk/id/local-authority/30UE,Precepts and Collection Fund,Precepts,"Customer, ICT & Transactional",Parish Precept,2040,Precepts & Collection Fund,Precept,Precept,10/04/2013,87975,"1,028.00",Revenue,Cuerden Parish Council,16207
Chorley Borough Council,http://statistics.data.gov.uk/id/local-authority/30UE,Precepts and Collection Fund,Precepts,"Customer, ICT & Transactional",Parish Precept,2040,Precepts & Collection Fund,Precept,Top Up,10/04/2013,87975,2.00,Revenue,Cuerden Parish Council,16207
Chorley Borough Council,http://statistics.data.gov.uk/id/local-authority/30UE,Other Short Term Debtors,,HR & Org. Development,Other Debtors,98,Balance Sheet,Balance,G59010654033 PH,05/04/2013,87769,374.15,Revenue,Cyclescheme Ltd,22390
Chorley Borough Council,http://statistics.data.gov.uk/id/local-authority/30UE,Other Short Term Debtors,,HR & Org. Development,Other Debtors,98,Balance Sheet,Balance,G59010654033 PH,05/04/2013,87769,30.00,Revenue,Cyclescheme Ltd,22390
Chorley Borough Council,http://statistics.data.gov.uk/id/local-authority/30UE,Other Short Term Debtors,,HR & Org. Development,Other Debtors,98,Balance Sheet,Balance,Cycle scheme for NK,05/04/2013,87787,375.00,Revenue,Cyclescheme Ltd,22390
Chorley Borough Council,http://statistics.data.gov.uk/id/local-authority/30UE,Unapportionable Central OHeads,1009,Governance,Professional Fees,14011,Direct Employee Expenses,5001,Appeal against disqualification at Preston Crown Court NAME REDACTED,12/04/2013,88026,500.00,Revenue,NAME REDACTED,17328
Chorley Borough Council,http://statistics.data.gov.uk/id/local-authority/30UE,Service Management & Support,1009,Streetscene & Leisure Contracts,Hire Of Transport,30028,Contrct Hire & Operating Lease,5018,Hire of Schmidt Swingo 250 for 16 week period at price quoted,24/04/2013,87872,"1,974.00",Revenue,Dawson Rental Sweepers,22011
Chorley Borough Council,http://statistics.data.gov.uk/id/local-authority/30UE,Service Management & Support,1009,Streetscene & Leisure Contracts,Hire Of Transport,30028,Contrct Hire & Operating Lease,5018,Hire of Johnston VT650 16 week period at price quoted,24/04/2013,87873,"2,457.00",Revenue,Dawson Rental Sweepers,22011
Chorley Borough Council,http://statistics.data.gov.uk/id/local-authority/30UE,Service Management & Support,1009,Streetscene & Leisure Contracts,Hire Of Transport,30028,Contrct Hire & Operating Lease,5018,Hire of Schmidt Swingo 250 from 22/02/2013 until 31/03/2013 at weekly hire rate agreed,24/04/2013,87874,"1,974.00",Revenue,Dawson Rental Sweepers,22011
Chorley Borough Council,http://statistics.data.gov.uk/id/local-authority/30UE,Economic Development,1096,Economic Development,Consultants` Fees,40077,Services,5027,The provision of a Town Centre Masterplan in accordance with the provisions,10/04/2013,87918,"11,384.61",Revenue,Deloitte LLP,58651
Chorley Borough Council,http://statistics.data.gov.uk/id/local-authority/30UE,Democratic Represent and  Mgnt,1007,Streetscene & Leisure Contracts,Printing,40043,"Printing, Stationery & General",5026,Railway Park Brinscall scrape back the paths as indicated on site visit and clear the ditch ,10/04/2013,87778,600.00,Revenue,Derek R Smith,21092
Chorley Borough Council,http://statistics.data.gov.uk/id/local-authority/30UE,Homelessness,1075,Housing,General Subscriptions,40146,Grants and Subscriptions,5031,1 Subscription to 4 modules of Case Law Digest to 19 May 2014,24/04/2013,88158,440.00,Revenue,Destin Solutions Ltd,47614
Chorley Borough Council,http://statistics.data.gov.uk/id/local-authority/30UE,Economic Development,1096,Economic Development,Grants To Other Organisations,40127,Grants and Subscriptions,5031,Shop Floor Refurbishment Grant,12/04/2013,88049,"5,000.00",Revenue,Diane Gunning of Ebb and Flo Bookshop,59017
Chorley Borough Council,http://statistics.data.gov.uk/id/local-authority/30UE,Community Development,1097,Policy & Performance,Core Funding Grants,40133,Grants and Subscriptions,5031,Reach Project Funding and Core Funding 2013/14,17/04/2013,88051,"2,000.00",Revenue,Disability Equality NW Ltd,55189
Chorley Borough Council,http://statistics.data.gov.uk/id/local-authority/30UE,Precepts and Collection Fund,Precepts,"Customer, ICT & Transactional",Parish Precept,2040,Precepts & Collection Fund,Precept,Precept,10/04/2013,87974,"39,674.00",Revenue,Eccleston Parish Council,17027
Chorley Borough Council,http://statistics.data.gov.uk/id/local-authority/30UE,Precepts and Collection Fund,Precepts,"Customer, ICT & Transactional",Parish Precept,2040,Precepts & Collection Fund,Precept,Top up,10/04/2013,87974,"1,636.00",Revenue,Eccleston Parish Council,17027
Chorley Borough Council,http://statistics.data.gov.uk/id/local-authority/30UE,Precepts and Collection Fund,Precepts,"Customer, ICT & Transactional",Parish Precept,2040,Precepts & Collection Fund,Precept,Precept,10/04/2013,87973,"101,171.00",Revenue,Euxton Parish Council,16838
Chorley Borough Council,http://statistics.data.gov.uk/id/local-authority/30UE,Precepts and Collection Fund,Precepts,"Customer, ICT & Transactional",Parish Precept,2040,Precepts & Collection Fund,Precept,Top Up,10/04/2013,87973,"1,709.00",Revenue,Euxton Parish Council,16838
Chorley Borough Council,http://statistics.data.gov.uk/id/local-authority/30UE,Service Management & Support,1009,Streetscene & Leisure Contracts,Hire Of Transport,30028,Contrct Hire & Operating Lease,5018,Hire of Case tractor and McConnell Flail cutter for 21 week period,24/04/2013,87742,"1,239.00",Revenue,F R Sharrock Ltd,18091
Chorley Borough Council,http://statistics.data.gov.uk/id/local-authority/30UE,Service Management & Support,1009,Streetscene & Leisure Contracts,Vehicle Maintenance,30045,Direct Transport Costs,5016,New clutch assembly on PN04XSP Massey Ferguson Tractor also collection and delivery ,05/04/2013,87756,"1,200.00",Revenue,F R Sharrock Ltd,18091
Chorley Borough Council,http://statistics.data.gov.uk/id/local-authority/30UE,Capital,Capital,Housing,Grants,3002,Capital Expenditure,Capital,Capital Works - Disable Facility Grant,05/04/2013,87716,"3,290.00",Capital,G McGavock Ltd,16921
Chorley Borough Council,http://statistics.data.gov.uk/id/local-authority/30UE,Democratic Represent and  Mgnt,1007,Streetscene & Leisure Contracts,Security Service,40062,Services,5027,Leisure Centres,17/04/2013,88095,233.78,Revenue,G4S Cash Solutions UK Ltd,22099
Chorley Borough Council,http://statistics.data.gov.uk/id/local-authority/30UE,Unapportionable Central OHeads,1009,Streetscene & Leisure Contracts,Security Service,40062,Services,5027,Union Street,17/04/2013,88095,47.49,Revenue,G4S Cash Solutions UK Ltd,22099
Chorley Borough Council,http://statistics.data.gov.uk/id/local-authority/30UE,Homelessness,1075,Streetscene & Leisure Contracts,Security Service,40062,Services,5027,Cotswold House,17/04/2013,88095,23.75,Revenue,G4S Cash Solutions UK Ltd,22099
Chorley Borough Council,http://statistics.data.gov.uk/id/local-authority/30UE,Business Support,1095,Governance,Gas,20014,Energy Costs,5006,Gas at gillibrand street,26/04/2013,88159,815.84,Revenue,Gazprom Energy,56502
Chorley Borough Council,http://statistics.data.gov.uk/id/local-authority/30UE,Business Support,1095,Governance,Gas,20014,Energy Costs,5006,Gas at Gillibrand street,26/04/2013,88160,263.84,Revenue,Gazprom Energy,56502
Chorley Borough Council,http://statistics.data.gov.uk/id/local-authority/30UE,Community Development,1097,Policy & Performance,Core Funding Grants,40133,Grants and Subscriptions,5031,Core Funding 2013/14,17/04/2013,88053,"7,100.00",Revenue,Genesis Care (North West) Ltd,53287
Chorley Borough Council,http://statistics.data.gov.uk/id/local-authority/30UE,Corporate Management,1008,Health Environment & Neighbourhoods,Vandalism Repairs,20005,Repairs Maintenance & Alts,5005,Detection and removal of graffiti and proactive value added cleaning work. ,05/04/2013,87767,"1,662.50",Revenue,Graffiti Removal (North) Ltd,17320
Chorley Borough Council,http://statistics.data.gov.uk/id/local-authority/30UE,Community Development,1097,Policy & Performance,Core Funding Grants,40133,Grants and Subscriptions,5031,Core Funding 2013/14,17/04/2013,88054,"5,000.00",Revenue,Groundwork Lancs West & Wigan,18150
Chorley Borough Council,http://statistics.data.gov.uk/id/local-authority/30UE,Unapportionable Central OHeads,1009,Shared Service Arrangement,Computer Software-Maintenance,40107,Communication and Computing,5028,Cheqflow 2 Software Support,19/04/2013,88131,583.00,Revenue,Hague Computer Supplies Ltd,56014
Chorley Borough Council,http://statistics.data.gov.uk/id/local-authority/30UE,Unapportionable Central OHeads,1009,Shared Service Arrangement,Computer Software-Maintenance,40107,Communication and Computing,5028,C/Flow Support with P/M Troy 2200,19/04/2013,88132,458.35,Revenue,Hague Computer Supplies Ltd,56014
Chorley Borough Council,http://statistics.data.gov.uk/id/local-authority/30UE,Unapportionable Central OHeads,1009,Shared Service Arrangement,Printing,40043,"Printing, Stationery & General",5026,5000 SRBCouncil cheques 2x Troy Micr Toner Cartridge 2100 - 2200,19/04/2013,88134,470.00,Revenue,Hague Computer Supplies Ltd,56014
Chorley Borough Council,http://statistics.data.gov.uk/id/local-authority/30UE,Service Management & Support,1009,Streetscene & Leisure Contracts,Tools & Equipment - Maintenance,40005,"Equipment, Furniture & Materia",5023,Carryout repairs to Bengal St steam wash as required,24/04/2013,88221,264.61,Revenue,Hanson Cleaning Equipment Ltd,17297
Chorley Borough Council,http://statistics.data.gov.uk/id/local-authority/30UE,Democratic Represent and  Mgnt,1007,Streetscene & Leisure Contracts,Children's Activities,40188,Miscellaneous Expenses,5034,1500 Yarrow Valley Park general information leaflets,10/04/2013,87777,486.00,Revenue,Haslam PrintersLtd,21777
Chorley Borough Council,http://statistics.data.gov.uk/id/local-authority/30UE,Elections,1012,Governance,Rent/Hire Of Premises,20017,Premises Rents,5007,Hire of Room for Polling Station PCC Elections 15 November 2012,12/04/2013,87732,250.00,Revenue,Heapey & Wheelton Village Hall,19826
Chorley Borough Council,http://statistics.data.gov.uk/id/local-authority/30UE,Precepts and Collection Fund,Precepts,"Customer, ICT & Transactional",Parish Precept,2040,Precepts & Collection Fund,Precept,Precept,10/04/2013,87972,"8,663.00",Revenue,Heapey Parish Council,17028
Chorley Borough Council,http://statistics.data.gov.uk/id/local-authority/30UE,Precepts and Collection Fund,Precepts,"Customer, ICT & Transactional",Parish Precept,2040,Precepts & Collection Fund,Precept,Top up,10/04/2013,87972,327.00,Revenue,Heapey Parish Council,17028
Chorley Borough Council,http://statistics.data.gov.uk/id/local-authority/30UE,Precepts and Collection Fund,Precepts,"Customer, ICT & Transactional",Parish Precept,2040,Precepts & Collection Fund,Precept,Precept,10/04/2013,87971,"6,765.00",Revenue,Heath Charnock Parish Council,16208
Chorley Borough Council,http://statistics.data.gov.uk/id/local-authority/30UE,Precepts and Collection Fund,Precepts,"Customer, ICT & Transactional",Parish Precept,2040,Precepts & Collection Fund,Precept,Precept,10/04/2013,87971,335.00,Revenue,Heath Charnock Parish Council,16208
Chorley Borough Council,http://statistics.data.gov.uk/id/local-authority/30UE,Community Development,1097,Governance,Grants To Other Organisations,40127,Grants and Subscriptions,5031,Community Grant Fund 2012/13,05/04/2013,87806,500.00,Revenue,Help The Homeless (Chorley),16716
Chorley Borough Council,http://statistics.data.gov.uk/id/local-authority/30UE,Community Development,1097,Policy & Performance,Core Funding Grants,40133,Grants and Subscriptions,5031,Core Funding 2013/14,17/04/2013,88055,"2,000.00",Revenue,Help The Homeless (Chorley),16716
Chorley Borough Council,http://statistics.data.gov.uk/id/local-authority/30UE,Precepts and Collection Fund,Precepts,"Customer, ICT & Transactional",Parish Precept,2040,Precepts & Collection Fund,Precept,Precept,10/04/2013,87970,"10,266.00",Revenue,Heskin Parish Council,17029
Chorley Borough Council,http://statistics.data.gov.uk/id/local-authority/30UE,Precepts and Collection Fund,Precepts,"Customer, ICT & Transactional",Parish Precept,2040,Precepts & Collection Fund,Precept,Top Up,10/04/2013,87970,544.00,Revenue,Heskin Parish Council,17029
Chorley Borough Council,http://statistics.data.gov.uk/id/local-authority/30UE,Unapportionable Central OHeads,1009,"Customer, ICT & Transactional",Computer Software-Maintenance,40107,Communication and Computing,5028,support fees for VMWare live site (Enterprise plus acceleration kit for 8 processors) ,19/04/2013,88140,"4,503.00",Revenue,Hewlett - Packard Limited,22335
Chorley Borough Council,http://statistics.data.gov.uk/id/local-authority/30UE,Unapportionable Central OHeads,1009,"Customer, ICT & Transactional",Computer Software-Maintenance,40107,Communication and Computing,5028,Support fees for VMWare live site (Enterprise plus acceleration kit for 8 processors) ,19/04/2013,88140,"2,787.12",Revenue,Hewlett - Packard Limited,22335
Chorley Borough Council,http://statistics.data.gov.uk/id/local-authority/30UE,Corporate Management,1008,Health Environment & Neighbourhoods,Veterinary Fees Etc,40074,Services,5027,Kennelling fees for Buster  22 days 0926 stray dogs 7 days 0860  stray dogs 12 days,05/04/2013,87784,536.00,Revenue,High Heyes Kennells & Cattery,21663
Chorley Borough Council,http://statistics.data.gov.uk/id/local-authority/30UE,Precepts and Collection Fund,Precepts,"Customer, ICT & Transactional",Parish Precept,2040,Precepts & Collection Fund,Precept,Precept,10/04/2013,87969,"4,833.00",Revenue,Hoghton Parish Council,16188
Chorley Borough Council,http://statistics.data.gov.uk/id/local-authority/30UE,Precepts and Collection Fund,Precepts,"Customer, ICT & Transactional",Parish Precept,2040,Precepts & Collection Fund,Precept,Top Up,10/04/2013,87969,167.00,Revenue,Hoghton Parish Council,16188
Chorley Borough Council,http://statistics.data.gov.uk/id/local-authority/30UE,Unapportionable Central OHeads,1009,Health Environment & Neighbourhoods,HR Approved Occ Health Fees,15201,Indirect Employee Expenses,5002,"Corporate Bowling Event 2013 50 people- 10 lanes",12/04/2013,88057,416.67,Revenue,Hollywood Bowl Bolton,59036
Chorley Borough Council,http://statistics.data.gov.uk/id/local-authority/30UE,Community Development,1097,Policy & Performance,Core Funding Grants,40133,Grants and Subscriptions,5031,Core funding 2013/14,24/04/2013,88145,"20,000.00",Revenue,Home-Start,20585
Chorley Borough Council,http://statistics.data.gov.uk/id/local-authority/30UE,Economic Development,1096,Economic Development,Grants To Other Organisations,40127,Grants and Subscriptions,5031,Starting in business grant - Capital Expenditure,10/04/2013,87856,640.00,Revenue,NAME REDACTED,59027
Chorley Borough Council,http://statistics.data.gov.uk/id/local-authority/30UE,Unapportionable Central OHeads,1009,"Customer, ICT & Transactional",Computer Equipment-Purchase,40098,Communication and Computing,5028,"APPLE TV Manu. Part#:MD199B/A, product code 0001459476",05/04/2013,87734,77.05,Revenue,Insight Direct (UK) LTD,21768
Chorley Borough Council,http://statistics.data.gov.uk/id/local-authority/30UE,Unapportionable Central OHeads,1009,"Customer, ICT & Transactional",Computer Equipment-Purchase,40098,Communication and Computing,5028,iPad with Retina display Wi&#8722;Fi 16GB &#8722;Black Manu. Part#:MD510B/A,05/04/2013,87734,641.22,Revenue,Insight Direct (UK) LTD,21768
Chorley Borough Council,http://statistics.data.gov.uk/id/local-authority/30UE,Unapportionable Central OHeads,1009,"Customer, ICT & Transactional",Computer Equipment-Purchase,40098,Communication and Computing,5028,LOGITECH B110 OPTICAL USB MOUSE Manu. Part#:910&#8722;001246,05/04/2013,87734,4.13,Revenue,Insight Direct (UK) LTD,21768
Chorley Borough Council,http://statistics.data.gov.uk/id/local-authority/30UE,Unapportionable Central OHeads,1009,"Customer, ICT & Transactional",Computer Equipment-Purchase,40098,Communication and Computing,5028,500T ATOM/276064GB SSD 2GB 11.6IN NOOPT W8P EN Manu,05/04/2013,87757,"1,353.60",Revenue,Insight Direct (UK) LTD,21768
Chorley Borough Council,http://statistics.data.gov.uk/id/local-authority/30UE,Unapportionable Central OHeads,1009,"Customer, ICT & Transactional",Computer Equipment-Purchase,40098,Communication and Computing,5028,"Samsung AllShare Cast Wireless Hub Manu. Part#:MCI, product code 0000430790",05/04/2013,87757,41.78,Revenue,Insight Direct (UK) LTD,21768
Chorley Borough Council,http://statistics.data.gov.uk/id/local-authority/30UE,Corporate Management,1008,Health Environment & Neighbourhoods,General Subscriptions,40146,Grants and Subscriptions,5031,IOL-  Standard Organisation Membership 2013 - 2014,24/04/2013,88168,250.00,Revenue,Institute Of Licensing (NW) Region,16987
Chorley Borough Council,http://statistics.data.gov.uk/id/local-authority/30UE,Unapportionable Central OHeads,1009,"Customer, ICT & Transactional",Computer Software-Maintenance,40107,Communication and Computing,5028,Maintenace 01/04/2013 - Sept-13,26/04/2013,87999,900.00,Revenue,Interconnect Network Systems,21292
Chorley Borough Council,http://statistics.data.gov.uk/id/local-authority/30UE,Economic Development,1096,Economic Development,Miscellaneous Expenses,40200,Miscellaneous Expenses,5034,"Festive BuntingTo ErecMaintain Remove Festive Bunting.",10/04/2013,87746,859.95,Revenue,J M Services (North West) Ltd,17837
Chorley Borough Council,http://statistics.data.gov.uk/id/local-authority/30UE,Parking Services,1066,Streetscene & Leisure Contracts,Car Park Lamps,20064,Grounds Maintenance Costs,5013,Clean lanterns,26/04/2013,87747,423.95,Revenue,J M Services (North West) Ltd,17837
Chorley Borough Council,http://statistics.data.gov.uk/id/local-authority/30UE,Community Development,1097,Policy & Performance,Core Funding Grants,40133,Grants and Subscriptions,5031,Core Funding,12/04/2013,87915,"1,000.00",Revenue,Jennings Boxing Community Association,57869
Chorley Borough Council,http://statistics.data.gov.uk/id/local-authority/30UE,Corporate Management,1008,"Customer, ICT & Transactional",Consultants` Fees,40077,Services,5027,For support services provided in March,05/04/2013,87887,"1,800.00",Revenue,REDACTED PERSONAL DATA,21745
Chorley Borough Council,http://statistics.data.gov.uk/id/local-authority/30UE,Service Management & Support,1009,Streetscene & Leisure Contracts,Supplies-Grounds Maintenance,40025,"Equipment, Furniture & Materia",5023,50 posts 900x100x100 birdmouths 20 3.6m 100x100 rails 50 4`` straps,10/04/2013,87899,400.00,Revenue,John H Mayor & Sons Ltd,16635
Chorley Borough Council,http://statistics.data.gov.uk/id/local-authority/30UE,Service Management & Support,1009,Streetscene & Leisure Contracts,Supplies-Grounds Maintenance,40025,"Equipment, Furniture & Materia",5023,Supply 88 x 38 x3.6m lengths of of sawn wood to be collected,10/04/2013,87899,32.40,Revenue,John H Mayor & Sons Ltd,16635
Chorley Borough Council,http://statistics.data.gov.uk/id/local-authority/30UE,Service Management & Support,1009,Streetscene & Leisure Contracts,Supplies-Grounds Maintenance,40025,"Equipment, Furniture & Materia",5023,Supply planned all round 94 x 33 x 4.2 lengths of wood to be collected,10/04/2013,87899,69.00,Revenue,John H Mayor & Sons Ltd,16635
Chorley Borough Council,http://statistics.data.gov.uk/id/local-authority/30UE,Service Management & Support,1009,Streetscene & Leisure Contracts,Supplies-Grounds Maintenance,40025,"Equipment, Furniture & Materia",5023,Supply 100 x 100 x 1.8m post to be collected,10/04/2013,87899,86.40,Revenue,John H Mayor & Sons Ltd,16635
Chorley Borough Council,http://statistics.data.gov.uk/id/local-authority/30UE,Service Management & Support,1009,Streetscene & Leisure Contracts,Supplies-Grounds Maintenance,40025,"Equipment, Furniture & Materia",5023,30MM Galv Staples,10/04/2013,87899,5.02,Revenue,John H Mayor & Sons Ltd,16635
Chorley Borough Council,http://statistics.data.gov.uk/id/local-authority/30UE,Service Management & Support,1009,Streetscene & Leisure Contracts,Supplies-Grounds Maintenance,40025,"Equipment, Furniture & Materia",5023,100x4.5 Glav Round Wire,10/04/2013,87899,8.27,Revenue,John H Mayor & Sons Ltd,16635
Chorley Borough Council,http://statistics.data.gov.uk/id/local-authority/30UE,Service Management & Support,1009,Streetscene & Leisure Contracts,Supplies-Grounds Maintenance,40025,"Equipment, Furniture & Materia",5023,50 x 2.65 Sher`d,10/04/2013,87899,14.19,Revenue,John H Mayor & Sons Ltd,16635
Chorley Borough Council,http://statistics.data.gov.uk/id/local-authority/30UE,Elections,1012,Governance,Statutory Notices,40160,Miscellaneous Expenses,5034,Notice of Election to be published in Chorley Guardian on Wednesday 27 March 2013,05/04/2013,87753,303.02,Revenue,Johnston Publishing Ltd,20072
Chorley Borough Council,http://statistics.data.gov.uk/id/local-authority/30UE,Planning Policy,1092,Planning,Statutory Notices,40160,Miscellaneous Expenses,5034,Community Infrastructure Levy Examination Public Notice in LEP,05/04/2013,87754,317.94,Revenue,Johnston Publishing Ltd,20072
Chorley Borough Council,http://statistics.data.gov.uk/id/local-authority/30UE,Development Control,1091,Planning,Statutory Notices,40160,Miscellaneous Expenses,5034,Planning Public Notices to appear in the Chorley Guardian,24/04/2013,88210,258.01,Revenue,Johnston Publishing Ltd,20072
Chorley Borough Council,http://statistics.data.gov.uk/id/local-authority/30UE,Parking Services,1066,Streetscene & Leisure Contracts,Signs:Provision & Maintenance,20065,Grounds Maintenance Costs,5013,Public Notice of off street parking charges in Chorley Guardian.,24/04/2013,88211,"1,072.25",Revenue,Johnston Publishing Ltd,20072
Chorley Borough Council,http://statistics.data.gov.uk/id/local-authority/30UE,Corporate Management,1008,Health Environment & Neighbourhoods,Tools & Equipment - Purchase,40003,"Equipment, Furniture & Materia",5023,"30,000 dog bags as previous order white with magenta writing",12/04/2013,88035,755.45,Revenue,JRB EnterpriseLtd,21819
Chorley Borough Council,http://statistics.data.gov.uk/id/local-authority/30UE,Corporate Management,1008,Health Environment & Neighbourhoods,Impounded Dogs Costs,40207,Miscellaneous Expenses,5034,Kennelling fees for 2012/13,05/04/2013,87802,600.00,Revenue,K A Dewhurst,16734
Chorley Borough Council,http://statistics.data.gov.uk/id/local-authority/30UE,Private Sector HSG Renewal,1073,Housing,Miscellaneous Expenses,40200,Miscellaneous Expenses,5034,Capital Works - Disable Facility Grant,05/04/2013,87854,420.00,Revenue,K Berry Ltd,16421
Chorley Borough Council,http://statistics.data.gov.uk/id/local-authority/30UE,Private Sector HSG Renewal,1073,Housing,Miscellaneous Expenses,40200,Miscellaneous Expenses,5034,Capital Works - Disable Facility Grant,26/04/2013,88213,600.00,Revenue,K Berry Ltd,16421
Chorley Borough Council,http://statistics.data.gov.uk/id/local-authority/30UE,Corporate Management,1008,Health Environment & Neighbourhoods,External Contractor,40198,Miscellaneous Expenses,5034,"Working on DDC on hourly rate - to cover weekends, early mornings and evenings.",10/04/2013,87992,455.00,Revenue,Karen Chisholm,56874
Chorley Borough Council,http://statistics.data.gov.uk/id/local-authority/30UE,Corporate Management,1008,Health Environment & Neighbourhoods,External Contractor,40198,Miscellaneous Expenses,5034,"Working on DDC on hourly rate - to cover weekends, early mornings and evenings.",10/04/2013,87993,376.25,Revenue,Karen Chisholm,56874
Chorley Borough Council,http://statistics.data.gov.uk/id/local-authority/30UE,Corporate Management,1008,Health Environment & Neighbourhoods,External Contractor,40198,Miscellaneous Expenses,5034,"Working on DDC on hourly rate - to cover weekends, early mornings and evenings.",10/04/2013,87995,770.00,Revenue,Karen Chisholm,56874
Chorley Borough Council,http://statistics.data.gov.uk/id/local-authority/30UE,Corporate Management,1008,Health Environment & Neighbourhoods,External Contractor,40198,Miscellaneous Expenses,5034,"Working on DDC on hourly rate - to cover weekends, early mornings and evenings.",10/04/2013,87996,708.75,Revenue,Karen Chisholm,56874
Chorley Borough Council,http://statistics.data.gov.uk/id/local-authority/30UE,Corporate Management,1008,Health Environment & Neighbourhoods,External Contractor,40198,Miscellaneous Expenses,5034,"Working on DDC on hourly rate - to cover weekends, early mornings and evenings.",10/04/2013,87997,595.00,Revenue,Karen Chisholm,56874
Chorley Borough Council,http://statistics.data.gov.uk/id/local-authority/30UE,Corporate Management,1008,Health Environment & Neighbourhoods,External Contractor,40198,Miscellaneous Expenses,5034,"Working on DDC on hourly rate - to cover weekends, early mornings and evenings.",10/04/2013,87998,634.37,Revenue,Karen Chisholm,56874
Chorley Borough Council,http://statistics.data.gov.uk/id/local-authority/30UE,Unapportionable Central OHeads,1009,Governance,Legal Fees,40171,Miscellaneous Expenses,5034,"Units 2 & 4 Common Bank, Chorley",12/04/2013,88023,"1,150.00",Revenue,Kings Chambers Ltd,48008
Chorley Borough Council,http://statistics.data.gov.uk/id/local-authority/30UE,Unapportionable Central OHeads,1009,"Customer, ICT & Transactional",Computer - Support Services,40111,Communication and Computing,5028,Trimble Mapping Hardware Support - GeoXT 2005 Series (Serial No GEXT4705421040),05/04/2013,87763,300.00,Revenue,KOREC,20478
Chorley Borough Council,http://statistics.data.gov.uk/id/local-authority/30UE,Unapportionable Central OHeads,1009,"Customer, ICT & Transactional",Computer - Support Services,40111,Communication and Computing,5028,"ESRI ArcPad � Annual Software Maintenance (Serial No AP101520A603A6)",05/04/2013,87763,250.00,Revenue,KOREC,20478
Chorley Borough Council,http://statistics.data.gov.uk/id/local-authority/30UE,Unapportionable Central OHeads,1009,"Customer, ICT & Transactional",Computer - Support Services,40111,Communication and Computing,5028,Trimble Software Annual Maint Contract (Serial No GPS010324-00200-00000-E9180527),05/04/2013,87763,60.00,Revenue,KOREC,20478
Chorley Borough Council,http://statistics.data.gov.uk/id/local-authority/30UE,Development Control,1091,Planning,Consultants` Fees,40077,Services,5027,Agricultural Planning Consultations Q4 January - March 2013,26/04/2013,88186,400.00,Revenue,Lancashire County Council,17758
Chorley Borough Council,http://statistics.data.gov.uk/id/local-authority/30UE,Development Control,1091,Planning,Consultants` Fees,40077,Services,5027,Application: 12/01160/PAR,26/04/2013,88186,300.00,Revenue,Lancashire County Council,17758
Chorley Borough Council,http://statistics.data.gov.uk/id/local-authority/30UE,Development Control,1091,Planning,Consultants` Fees,40077,Services,5027,Application: 12/01212/PAR,26/04/2013,88186,400.00,Revenue,Lancashire County Council,17758
Chorley Borough Council,http://statistics.data.gov.uk/id/local-authority/30UE,Development Control,1091,Planning,Consultants` Fees,40077,Services,5027,13/00078/FUL,26/04/2013,88186,400.00,Revenue,Lancashire County Council,17758
Chorley Borough Council,http://statistics.data.gov.uk/id/local-authority/30UE,Public Transport,1067,Streetscene & Leisure Contracts,Other Fees,40212,Miscellaneous Expenses,5034,Net rental income re Chorley Interchange 2012/13,24/04/2013,88204,"9,186.22",Revenue,Lancashire County Council,17758
Chorley Borough Council,http://statistics.data.gov.uk/id/local-authority/30UE,Unapportionable Central OHeads,1009,HR & Org. Development,Service Fees,40056,Services,5027,Occupational Health Services,17/04/2013,87858,290.00,Revenue,Lancashire Teaching Hospitals NHS FT,19003
Chorley Borough Council,http://statistics.data.gov.uk/id/local-authority/30UE,Unapportionable Central OHeads,1009,HR & Org. Development,Service Fees,40056,Services,5027,Occupational Health Services,17/04/2013,87858,46.50,Revenue,Lancashire Teaching Hospitals NHS FT,19003
Chorley Borough Council,http://statistics.data.gov.uk/id/local-authority/30UE,Parking Services,1066,Streetscene & Leisure Contracts,External Contractors,50008,Private Contractors,5042,Enforcement and Cash Collection charges ,05/04/2013,87817,"4,742.03",Revenue,Legion Group,21973
Chorley Borough Council,http://statistics.data.gov.uk/id/local-authority/30UE,Unapportionable Central OHeads,1009,Governance,External Contractors,50008,Private Contractors,5042,Core and Reactive Service Charge,12/04/2013,87985,"41,633.47",Revenue,Liberata UK,20716
Chorley Borough Council,http://statistics.data.gov.uk/id/local-authority/30UE,Capital,Capital,Governance,Consultants Fees,3025,Capital Expenditure,Capital,Management Fee on Capital Projects,12/04/2013,87985,"5,125.05",Capital,Liberata UK,20716
Chorley Borough Council,http://statistics.data.gov.uk/id/local-authority/30UE,Unapportionable Central OHeads,1009,Governance,Asset Maintenance Fund,20012,Repairs Maintenance & Alts,5005,Pass Through Work,12/04/2013,88019,"1,851.85",Revenue,Liberata UK,20716
Chorley Borough Council,http://statistics.data.gov.uk/id/local-authority/30UE,Unapportionable Central OHeads,1009,Governance,Asset Maintenance Fund,20012,Repairs Maintenance & Alts,5005,Improvement Works,12/04/2013,88020,"2,381.87",Revenue,Liberata UK,20716
Chorley Borough Council,http://statistics.data.gov.uk/id/local-authority/30UE,Unapportionable Central OHeads,1009,Governance,Asset Maintenance Fund,20012,Repairs Maintenance & Alts,5005,Work in Progress,12/04/2013,88021,"7,169.48",Revenue,Liberata UK,20716
Chorley Borough Council,http://statistics.data.gov.uk/id/local-authority/30UE,Democratic Represent and  Mgnt,1007,Chief Executives Office,General Subscriptions,40146,Grants and Subscriptions,5031,LGA Subscription 2013 / 2014,12/04/2013,87954,"10,450.00",Revenue,Local Government Association,16243
Chorley Borough Council,http://statistics.data.gov.uk/id/local-authority/30UE,Democratic Represent and  Mgnt,1007,Chief Executives Office,Conferences - Members,40121,Expenses,5030,2 Places on the LGA Annual Conference and Exhibition at Manchester Central,24/04/2013,88203,495.00,Revenue,Local Government Association,16243
Chorley Borough Council,http://statistics.data.gov.uk/id/local-authority/30UE,Democratic Represent and  Mgnt,1007,Chief Executives Office,Conferences - Members,40121,Expenses,5030,2 Places on the LGA Annual Conference and Exhibition at Manchester Central ,24/04/2013,88205,495.00,Revenue,Local Government Association,16243
Chorley Borough Council,http://statistics.data.gov.uk/id/local-authority/30UE,Homelessness,1075,HR & Org. Development,Agency Staff,13000,Direct Employee Expenses,5001,Peets Alexander PAYE Housing Options Officer SA58903 15.56,10/04/2013,87830,490.14,Revenue,Matrix SCM Ltd,22128
Chorley Borough Council,http://statistics.data.gov.uk/id/local-authority/30UE,Homelessness,1075,HR & Org. Development,Agency Staff,13000,Direct Employee Expenses,5001,Peets Alexander PAYE Housing Options Officer SA58903 15.56,12/04/2013,88017,497.92,Revenue,Matrix SCM Ltd,22128
Chorley Borough Council,http://statistics.data.gov.uk/id/local-authority/30UE,Homelessness,1075,HR & Org. Development,Agency Staff,13000,Direct Employee Expenses,5001,Peets Alexander PAYE Housing Options Officer SA58903 15.56,19/04/2013,88120,595.17,Revenue,Matrix SCM Ltd,22128
Chorley Borough Council,http://statistics.data.gov.uk/id/local-authority/30UE,Precepts and Collection Fund,Precepts,"Customer, ICT & Transactional",Parish Precept,2040,Precepts & Collection Fund,Precept,Parish Precept,10/04/2013,87968,"25,206.00",Revenue,Mawdesley Parish Council,17570
Chorley Borough Council,http://statistics.data.gov.uk/id/local-authority/30UE,Precepts and Collection Fund,Precepts,"Customer, ICT & Transactional",Parish Precept,2040,Precepts & Collection Fund,Precept,Top Up,10/04/2013,87968,794.00,Revenue,Mawdesley Parish Council,17570
Chorley Borough Council,http://statistics.data.gov.uk/id/local-authority/30UE,Elections,1012,Governance,Rent/Hire Of Premises,20017,Premises Rents,5007,room hire for LCC Elections 2 May 2013,26/04/2013,88225,310.00,Revenue,Mawdesley Village Hall,18423
Chorley Borough Council,http://statistics.data.gov.uk/id/local-authority/30UE,Corporate Management,1008,Streetscene & Leisure Contracts,External Contractor,40198,Miscellaneous Expenses,5034,"Works carried out under Warm Homes Scheme at Blackburn Road, Chorley",24/04/2013,88182,"4,786.44",Revenue,MH Electrical,59147
Chorley Borough Council,http://statistics.data.gov.uk/id/local-authority/30UE,Corporate Management,1008,Health Environment & Neighbourhoods,"Hackney Badges, Plates Etc.",40023,"Equipment, Furniture & Materia",5023,Mogo Door Signs vinyl - Private Hire Vehicles,10/04/2013,87910,290.10,Revenue,Mogo UK,17187
Chorley Borough Council,http://statistics.data.gov.uk/id/local-authority/30UE,Development Control,1091,Planning,Legal Fees,40171,Miscellaneous Expenses,5034,In the matter of Orcherton House Farm  Advice 19 March 2013 ,05/04/2013,87801,725.00,Revenue,King's Chambers,20798
Chorley Borough Council,http://statistics.data.gov.uk/id/local-authority/30UE,Community Development,1097,Policy & Performance,Core Funding Grants,40133,Grants and Subscriptions,5031,Core Funding 2013/14,12/04/2013,87946,275.00,Revenue,MS Society - Chorley and District Branch,59034
Chorley Borough Council,http://statistics.data.gov.uk/id/local-authority/30UE,Community Development,1097,Policy & Performance,Core Funding Grants,40133,Grants and Subscriptions,5031,Core Funding 2013/14,12/04/2013,87916,620.00,Revenue,Music and Arts for Creative Youth,47127
Chorley Borough Council,http://statistics.data.gov.uk/id/local-authority/30UE,Corporate Management,1008,Health Environment & Neighbourhoods,Veterinary Fees Etc,40074,Services,5027,Worming and vaccinations for stray dogs going into rescues.,05/04/2013,87743,321.62,Revenue,Myerscough Veterinary Group,56978
Chorley Borough Council,http://statistics.data.gov.uk/id/local-authority/30UE,Unapportionable Central OHeads,1009,Governance,Professional Fees,14011,Direct Employee Expenses,5001,"Land at Laurel Avenue, Euxton.Professional fees in relation to Deed of Variation.",12/04/2013,88025,"1,250.00",Revenue,Napthens Solicitors,20427
Chorley Borough Council,http://statistics.data.gov.uk/id/local-authority/30UE,Service Management & Support,1009,Streetscene & Leisure Contracts,Refuse Collection,20037,Cleaning and Domestic Supplies,5012,Street Cleaning,24/04/2013,88039,79.07,Revenue,Neales Waste Management,17583
Chorley Borough Council,http://statistics.data.gov.uk/id/local-authority/30UE,Service Management & Support,1009,Streetscene & Leisure Contracts,Refuse Collection,20037,Cleaning and Domestic Supplies,5012,Waste,24/04/2013,88039,800.00,Revenue,Neales Waste Management,17583
Chorley Borough Council,http://statistics.data.gov.uk/id/local-authority/30UE,Community Development,1097,Health Environment & Neighbourhoods,Refuse Collection,20037,Cleaning and Domestic Supplies,5012,Skip Provision for Community Clean Up ADDRESS REDACTED,12/04/2013,88041,268.98,Revenue,Neales Waste Management,17583
Chorley Borough Council,http://statistics.data.gov.uk/id/local-authority/30UE,Community Development,1097,Health Environment & Neighbourhoods,Refuse Collection,20037,Cleaning and Domestic Supplies,5012,Skip Provision for Community Clean Up ADDRESS REDACTED,12/04/2013,88045,300.53,Revenue,Neales Waste Management,17583
Chorley Borough Council,http://statistics.data.gov.uk/id/local-authority/30UE,Corporate Management,1008,Health Environment & Neighbourhoods,Miscellaneous Expenses,40200,Miscellaneous Expenses,5034,2 no drums chemical. one drum 10litre contents labled as sdium hydroxide.,17/04/2013,88092,250.00,Revenue,Neales Waste Management,17583
Chorley Borough Council,http://statistics.data.gov.uk/id/local-authority/30UE,Corporate Management,1008,Health Environment & Neighbourhoods,Miscellaneous Expenses,40200,Miscellaneous Expenses,5034,Analysis and collection of 3 45 gall drums of chemical waste fly tipped on Marsh Lane ,17/04/2013,88092,600.00,Revenue,Neales Waste Management,17583
Chorley Borough Council,http://statistics.data.gov.uk/id/local-authority/30UE,Democratic Represent and  Mgnt,1007,Streetscene & Leisure Contracts,Tools & Equipment - Purchase,40003,"Equipment, Furniture & Materia",5023,Radio equipment,19/04/2013,87934,"1,158.00",Revenue,Nine Hundred Communications,51033
Chorley Borough Council,http://statistics.data.gov.uk/id/local-authority/30UE,Service Management & Support,1009,Streetscene & Leisure Contracts,Supplies & Consumables -Street Cleansing,40235,"Equipment, Furniture & Materia",5023,Supply recycled polly wire mix brushes Swingo 250,17/04/2013,88087,379.26,Revenue,Northern Municipal Spares Ltd,17752
Chorley Borough Council,http://statistics.data.gov.uk/id/local-authority/30UE,Service Management & Support,1009,Streetscene & Leisure Contracts,Supplies & Consumables -Street Cleansing,40235,"Equipment, Furniture & Materia",5023,Supply 3.3mm wire brushes for Swingo 250,17/04/2013,88087,210.92,Revenue,Northern Municipal Spares Ltd,17752
Chorley Borough Council,http://statistics.data.gov.uk/id/local-authority/30UE,Service Management & Support,1009,Streetscene & Leisure Contracts,Supplies & Consumables -Street Cleansing,40235,"Equipment, Furniture & Materia",5023,Supply 4 row channel brushes for Johnston VT650,17/04/2013,88087,203.70,Revenue,Northern Municipal Spares Ltd,17752
Chorley Borough Council,http://statistics.data.gov.uk/id/local-authority/30UE,Service Management & Support,1009,Streetscene & Leisure Contracts,Hire Of Transport,30028,Contrct Hire & Operating Lease,5018,Hire of Ford Transit pickup Reg NJ10OTK,24/04/2013,87823,407.43,Revenue,Northgate Vehicle Hire (NW) Ltd,17360
Chorley Borough Council,http://statistics.data.gov.uk/id/local-authority/30UE,Service Management & Support,1009,Streetscene & Leisure Contracts,Hire Of Transport,30028,Contrct Hire & Operating Lease,5018,Hire of Ford Transit pickup NJ10OVN,24/04/2013,87823,262.86,Revenue,Northgate Vehicle Hire (NW) Ltd,17360
Chorley Borough Council,http://statistics.data.gov.uk/id/local-authority/30UE,Service Management & Support,1009,Streetscene & Leisure Contracts,Hire Of Transport,30028,Contrct Hire & Operating Lease,5018,Hire of Ford Transit pickup NJ10OXG,24/04/2013,87823,407.43,Revenue,Northgate Vehicle Hire (NW) Ltd,17360
Chorley Borough Council,http://statistics.data.gov.uk/id/local-authority/30UE,Service Management & Support,1009,Streetscene & Leisure Contracts,Hire Of Transport,30028,Contrct Hire & Operating Lease,5018,Hire of Ford Transit pickup NJ10OXP,24/04/2013,87823,407.42,Revenue,Northgate Vehicle Hire (NW) Ltd,17360
Chorley Borough Council,http://statistics.data.gov.uk/id/local-authority/30UE,Service Management & Support,1009,Streetscene & Leisure Contracts,Hire Of Transport,30028,Contrct Hire & Operating Lease,5018,Hire of Ford Transit Crewcab Reg NL12OFG,24/04/2013,87823,522.57,Revenue,Northgate Vehicle Hire (NW) Ltd,17360
Chorley Borough Council,http://statistics.data.gov.uk/id/local-authority/30UE,Service Management & Support,1009,Streetscene & Leisure Contracts,Hire Of Transport,30028,Contrct Hire & Operating Lease,5018,Hire of Peugeot Partner Van Reg NV60BVF,24/04/2013,87823,241.40,Revenue,Northgate Vehicle Hire (NW) Ltd,17360
Chorley Borough Council,http://statistics.data.gov.uk/id/local-authority/30UE,Corporate Management,1008,Streetscene & Leisure Contracts,Transport Operating Leases,30029,Contrct Hire & Operating Lease,5018,Hire of Peugeot Partner van after modification ,24/04/2013,87823,251.23,Revenue,Northgate Vehicle Hire (NW) Ltd,17360
Chorley Borough Council,http://statistics.data.gov.uk/id/local-authority/30UE,Service Management & Support,1009,Streetscene & Leisure Contracts,Hire Of Transport,30028,Contrct Hire & Operating Lease,5018,Hire of NJ10 OVN,24/04/2013,87823,146.57,Revenue,Northgate Vehicle Hire (NW) Ltd,17360
Chorley Borough Council,http://statistics.data.gov.uk/id/local-authority/30UE,Democratic Represent and  Mgnt,1007,Streetscene & Leisure Contracts,Hire Of Transport,30028,Contrct Hire & Operating Lease,5018,Hire of KR09 YPZ,24/04/2013,87823,509.29,Revenue,Northgate Vehicle Hire (NW) Ltd,17360
Chorley Borough Council,http://statistics.data.gov.uk/id/local-authority/30UE,Service Management & Support,1009,Streetscene & Leisure Contracts,Hire Of Transport,30028,Contrct Hire & Operating Lease,5018,Hire of NK13 YPG,24/04/2013,87823,30.40,Revenue,Northgate Vehicle Hire (NW) Ltd,17360
Chorley Borough Council,http://statistics.data.gov.uk/id/local-authority/30UE,Service Management & Support,1009,Streetscene & Leisure Contracts,Hire Of Transport,30028,Contrct Hire & Operating Lease,5018,Hire of NL12 ONR,24/04/2013,87823,522.57,Revenue,Northgate Vehicle Hire (NW) Ltd,17360
Chorley Borough Council,http://statistics.data.gov.uk/id/local-authority/30UE,Service Management & Support,1009,Streetscene & Leisure Contracts,Hire Of Transport,30028,Contrct Hire & Operating Lease,5018,Hire of NJ60 KFK,24/04/2013,87823,426.60,Revenue,Northgate Vehicle Hire (NW) Ltd,17360
Chorley Borough Council,http://statistics.data.gov.uk/id/local-authority/30UE,Democratic Represent and  Mgnt,1007,Streetscene & Leisure Contracts,Hire Of Transport,30028,Contrct Hire & Operating Lease,5018,Hire of Mercedes Sprinter,26/04/2013,88199,250.69,Revenue,Northgate Vehicle Hire (NW) Ltd,17360
Chorley Borough Council,http://statistics.data.gov.uk/id/local-authority/30UE,Parking Services,1066,Chief Executives Office,Electricity,20013,Energy Costs,5006,Un-metered Car Park Lighting,12/04/2013,88038,893.60,Revenue,Npower Commercial Gas,16814
Chorley Borough Council,http://statistics.data.gov.uk/id/local-authority/30UE,Parking Services,1066,Chief Executives Office,Electricity,20013,Energy Costs,5006,Un-metered Pay& Display Machines,12/04/2013,88038,97.03,Revenue,Npower Commercial Gas,16814
Chorley Borough Council,http://statistics.data.gov.uk/id/local-authority/30UE,Culture & Heritage,1036,Chief Executives Office,Electricity,20013,Energy Costs,5006,Un-metered CCTV Cameras,12/04/2013,88038,239.17,Revenue,Npower Commercial Gas,16814
Chorley Borough Council,http://statistics.data.gov.uk/id/local-authority/30UE,Democratic Represent and  Mgnt,1007,Health Environment & Neighbourhoods,Hire Of Transport,30028,Contrct Hire & Operating Lease,5018,Return transport from Astley Village community to stephen hendry snooker,19/04/2013,88029,270.00,Revenue,Oasis Travel,17113
Chorley Borough Council,http://statistics.data.gov.uk/id/local-authority/30UE,Unapportionable Central OHeads,1009,HR & Org. Development,HR Approved Training Expenses,17001,Indirect Employee Expenses,5002,Advanced Presenting Skills Course for 8/9 May 2013,26/04/2013,88235,"1,910.00",Revenue,One Life 2 Live,22240
Chorley Borough Council,http://statistics.data.gov.uk/id/local-authority/30UE,Parking Services,1066,Streetscene & Leisure Contracts,Professional Fees,40063,Services,5027,Estimated quarterly charges for pcn issues ,24/04/2013,88136,465.60,Revenue,PATROL,21859
Chorley Borough Council,http://statistics.data.gov.uk/id/local-authority/30UE,Corporate Management,1008,Health Environment & Neighbourhoods,External Contractor,40198,Miscellaneous Expenses,5034,One off payment for Pest control,05/04/2013,87864,311.75,Revenue,Peter L Johnson,16727
Chorley Borough Council,http://statistics.data.gov.uk/id/local-authority/30UE,Corporate Management,1008,Health Environment & Neighbourhoods,External Contractor,40198,Miscellaneous Expenses,5034,50 weeks @ 330.00 for 2013/14,17/04/2013,88116,311.75,Revenue,Peter L Johnson,16727
Chorley Borough Council,http://statistics.data.gov.uk/id/local-authority/30UE,Corporate Management,1008,Health Environment & Neighbourhoods,External Contractor,40198,Miscellaneous Expenses,5034,50 weeks @ 330.00 for 2013/14,26/04/2013,88220,311.75,Revenue,Peter L Johnson,16727
Chorley Borough Council,http://statistics.data.gov.uk/id/local-authority/30UE,Unapportionable Central OHeads,1009,"Customer, ICT & Transactional",Computer Software-Purchase,40100,Communication and Computing,5028,"Acrobat 11 Windows Standard Licence Level 2 - Volume Licence, Electronic Delivery",12/04/2013,88004,464.40,Revenue,Phoenix Software Ltd,17046
Chorley Borough Council,http://statistics.data.gov.uk/id/local-authority/30UE,Service Management & Support,1009,Streetscene & Leisure Contracts,Diesel/Derv,30007,Direct Transport Costs,5016,Supply 2000 litres of white diesel to be delivered to Bengal St Depot,10/04/2013,88011,"2,271.06",Revenue,Pilkington Oils,18075
Chorley Borough Council,http://statistics.data.gov.uk/id/local-authority/30UE,Service Management & Support,1009,Streetscene & Leisure Contracts,Diesel/Derv,30007,Direct Transport Costs,5016,Supply 2000 litres of red diesel to be delivered to Bengal St depot,10/04/2013,88012,"1,388.00",Revenue,Pilkington Oils,18075
Chorley Borough Council,http://statistics.data.gov.uk/id/local-authority/30UE,Service Management & Support,1009,Streetscene & Leisure Contracts,Diesel/Derv,30007,Direct Transport Costs,5016,2000 litres of white diesel,24/04/2013,88180,"2,268.00",Revenue,Pilkington Oils,18075
Chorley Borough Council,http://statistics.data.gov.uk/id/local-authority/30UE,Democratic Represent and  Mgnt,1007,Streetscene & Leisure Contracts,Playground Equipment,40008,"Equipment, Furniture & Materia",5023,"order of 1nr city gravity bowl and delivery to Chorley, Bengal St Depot, PR7 1SA",12/04/2013,87867,"1,146.00",Revenue,Playdale Playgrounds Limited,18672
Chorley Borough Council,http://statistics.data.gov.uk/id/local-authority/30UE,Democratic Represent and  Mgnt,1007,Streetscene & Leisure Contracts,Playground Equipment,40008,"Equipment, Furniture & Materia",5023,"1 City Mega Swing, delivery, installation into grass ",24/04/2013,88222,"7,269.50",Revenue,Playdale Playgrounds Limited,18672
Chorley Borough Council,http://statistics.data.gov.uk/id/local-authority/30UE,Democratic Represent and  Mgnt,1007,Streetscene & Leisure Contracts,Publicity - Advertising,40157,Miscellaneous Expenses,5034,Signs,04/04/2013,87896,336.12,Revenue,Poppy Signs Ltd,21898
Chorley Borough Council,http://statistics.data.gov.uk/id/local-authority/30UE,Unapportionable Central OHeads,1009,HR & Org. Development,Corp Training Organisational Development,17006,Indirect Employee Expenses,5002,"Introduction to work.  Sessions to be held on 12/03/2013, 03/04/2013 and 30/04/2013 ",05/04/2013,87788,495.00,Revenue,Potential Unearthed,22243
Chorley Borough Council,http://statistics.data.gov.uk/id/local-authority/30UE,Unapportionable Central OHeads,1009,HR & Org. Development,Corp Training Organisational Development,17006,Indirect Employee Expenses,5002,Aspiring Manager Programme - Module 3 - 2/4/13,17/04/2013,88001,495.00,Revenue,Potential Unearthed,22243
Chorley Borough Council,http://statistics.data.gov.uk/id/local-authority/30UE,Unapportionable Central OHeads,1009,HR & Org. Development,Corp Training Organisational Development,17006,Indirect Employee Expenses,5002,"Introduction to work.  Sessions to be held on 12/03/2013, 03/04/2013 and 30/04/2013 ",10/04/2013,88002,990.00,Revenue,Potential Unearthed,22243
Chorley Borough Council,http://statistics.data.gov.uk/id/local-authority/30UE,Unapportionable Central OHeads,1009,Chief Executives Office,Photocopier Consumables,40049,"Printing, Stationery & General",5026,"Evolution Everyday A4 80gsm, Box 2500",17/04/2013,88080,461.00,Revenue,Premier Paper Group,54451
Chorley Borough Council,http://statistics.data.gov.uk/id/local-authority/30UE,Corporate Management,1008,Streetscene & Leisure Contracts,External Contractor,40198,Miscellaneous Expenses,5034,Boiler service/maintenance checks  - for the Warm Homes Healthy People project,05/04/2013,87781,500.00,Revenue,Preston Care and Repair,50018
Chorley Borough Council,http://statistics.data.gov.uk/id/local-authority/30UE,Corporate Management,1008,Streetscene & Leisure Contracts,External Contractor,40198,Miscellaneous Expenses,5034,Boiler service/maintenance checks  - for the Warm Homes Healthy People project,10/04/2013,87953,"2,200.00",Revenue,Preston Care and Repair,50018
Chorley Borough Council,http://statistics.data.gov.uk/id/local-authority/30UE,Private Sector HSG Renewal,1073,Housing,External Contractor,40198,Miscellaneous Expenses,5034,Provision of the Handyperson Service in Chorley 2013/2014  - Quarter 1,12/04/2013,88037,"7,500.00",Revenue,Preston Care and Repair,50018
Chorley Borough Council,http://statistics.data.gov.uk/id/local-authority/30UE,Parking Services,1066,Streetscene & Leisure Contracts,External Contractors,50008,Private Contractors,5042,Service charges for the cash counting facility at Preston 2012-13,05/04/2013,87733,"1,525.00",Revenue,Preston City Council,49396
Chorley Borough Council,http://statistics.data.gov.uk/id/local-authority/30UE,Elections,1012,Governance,Printing,40043,"Printing, Stationery & General",5026,"Lancashire County Council Poll CardsA5 - Poll Cards and Postal Poll Cards (Pink)",12/04/2013,88084,"4,428.90",Revenue,Print Image Network,21171
Chorley Borough Council,http://statistics.data.gov.uk/id/local-authority/30UE,Elections,1012,Governance,Printing,40043,"Printing, Stationery & General",5026,Election Prints,17/04/2013,88085,"2,844.00",Revenue,Print Image Network,21171
Chorley Borough Council,http://statistics.data.gov.uk/id/local-authority/30UE,Planning Policy,1092,Planning,Professional Fees,40063,Services,5027,Local Development Framework Programme Officer from December 2012 to adoption 2013,24/04/2013,87765,"1,380.00",Revenue,Programme Officer Services Ltd,57093
Chorley Borough Council,http://statistics.data.gov.uk/id/local-authority/30UE,Planning Policy,1092,Planning,Professional Fees,40063,Services,5027,Local Development Framework Programme Officer from December 2012 to adoption 2013,24/04/2013,87765,53.27,Revenue,Programme Officer Services Ltd,57093
Chorley Borough Council,http://statistics.data.gov.uk/id/local-authority/30UE,Planning Policy,1092,Planning,Professional Fees,40063,Services,5027,Local Development Framework Programme Officer from December 2012 to adoption 2013,26/04/2013,88232,"1,400.00",Revenue,Programme Officer Services Ltd,57093
Chorley Borough Council,http://statistics.data.gov.uk/id/local-authority/30UE,Capital,Capital,Streetscene & Leisure Contracts,Main Contractor,3007,Capital Expenditure,Capital,Works on Clayton Green Sports Centre Roof. obtainment of warrenty of works ,10/04/2013,87904,"9,250.00",Capital,QM Roofing Ltd,58864
Chorley Borough Council,http://statistics.data.gov.uk/id/local-authority/30UE,Service Management & Support,1009,Streetscene & Leisure Contracts,Refuse Collection,20037,Cleaning and Domestic Supplies,5012,Waste for March,24/04/2013,87919,"1,784.64",Revenue,Quercia Ltd,19049
Chorley Borough Council,http://statistics.data.gov.uk/id/local-authority/30UE,Economic Development,1096,Economic Development,Grants To Other Organisations,40127,Grants and Subscriptions,5031,Starting in business grant - Capital Expenditure,24/04/2013,88218,349.79,Revenue,NAME REDACTED,58661
Chorley Borough Council,http://statistics.data.gov.uk/id/local-authority/30UE,Corporate Management,1008,Streetscene & Leisure Contracts,General Repairs,20004,Repairs Maintenance & Alts,5005,"20 2x8 Ground Guards 40 Flat single joiners 4 Handi hooks",17/04/2013,88082,"3,900.00",Revenue,Rigby Taylor Ltd,16299
Chorley Borough Council,http://statistics.data.gov.uk/id/local-authority/30UE,Service Management & Support,1009,Streetscene & Leisure Contracts,Supplies-Grounds Maintenance,40025,"Equipment, Furniture & Materia",5023,20 5litres tubs of impact,24/04/2013,88164,400.00,Revenue,Rigby Taylor Ltd,16299
Chorley Borough Council,http://statistics.data.gov.uk/id/local-authority/30UE,Elections,1012,Governance,Rent/Hire Of Premises,20017,Premises Rents,5007,Room Hire for polling Station on 3 May 2012 and 15 November 2013,19/04/2013,88111,288.00,Revenue,Rivington Parish Church,21377
Chorley Borough Council,http://statistics.data.gov.uk/id/local-authority/30UE,Precepts and Collection Fund,Precepts,"Customer, ICT & Transactional",Parish Precept,2040,Precepts & Collection Fund,Precept,Precept,10/04/2013,87967,"2,331.00",Revenue,Rivington Parish Council,16209
Chorley Borough Council,http://statistics.data.gov.uk/id/local-authority/30UE,Precepts and Collection Fund,Precepts,"Customer, ICT & Transactional",Parish Precept,2040,Precepts & Collection Fund,Precept,Top Up,10/04/2013,87967,169.00,Revenue,Rivington Parish Council,16209
Chorley Borough Council,http://statistics.data.gov.uk/id/local-authority/30UE,Economic Development,1096,Economic Development,Grants To Other Organisations,40127,Grants and Subscriptions,5031,Starting In business grant - Capital Expenditure,24/04/2013,88155,"1,000.00",Revenue,NAME REDACTED,59026
Chorley Borough Council,http://statistics.data.gov.uk/id/local-authority/30UE,Capital,Capital,Streetscene & Leisure Contracts,Main Contractor,3007,Capital Expenditure,Capital,The Willows Play Area - Order for the installation of specified play equipment ,10/04/2013,87748,"13,278.21",Capital,RTC Safety Surfaces Ltd,21613
Chorley Borough Council,http://statistics.data.gov.uk/id/local-authority/30UE,Democratic Represent and  Mgnt,1007,Health Environment & Neighbourhoods,Children's Activities,40188,Miscellaneous Expenses,5034,600 medals plus ribbons and centres Order placed via email,24/04/2013,88173,879.75,Revenue,Running Imp,20636
Chorley Borough Council,http://statistics.data.gov.uk/id/local-authority/30UE,Community Development,1097,Policy & Performance,Core Funding Grants,40133,Grants and Subscriptions,5031,Core Funding 2013/14,12/04/2013,87917,500.00,Revenue,Sambafriq,21441
Chorley Borough Council,http://statistics.data.gov.uk/id/local-authority/30UE,Corporate Management,1008,Shared Service Arrangement,Treasury Management Service,40065,Services,5027,Treasury Services From October 2012 31/03/2013,12/04/2013,88030,"6,750.00",Revenue,Sector Treasury Services Ltd,16428
Chorley Borough Council,http://statistics.data.gov.uk/id/local-authority/30UE,Economic Development,1096,Economic Development,Grants To Other Organisations,40127,Grants and Subscriptions,5031,Starting in business grant - Capital Expenditure,10/04/2013,87855,"1,000.00",Revenue,NAME REDACTED,59028
Chorley Borough Council,http://statistics.data.gov.uk/id/local-authority/30UE,Homelessness,1075,Housing,Training Course Fees,17010,Indirect Employee Expenses,5002,Advanced Homelessness and Allocations Law Training 26 & 27 September 2012.,26/04/2013,87780,330.00,Revenue,Shelter Training,21902
Chorley Borough Council,http://statistics.data.gov.uk/id/local-authority/30UE,Unapportionable Central OHeads,1009,"Customer, ICT & Transactional",Consultants` Fees,40077,Services,5027,2 additional days development as agreed,05/04/2013,87766,200.00,Revenue,NAME REDACTED,57624
Chorley Borough Council,http://statistics.data.gov.uk/id/local-authority/30UE,Unapportionable Central OHeads,1009,"Customer, ICT & Transactional",Consultants` Fees,40077,Services,5027,ICT consultancy work - Mar (21 days) To be paid on daily basis Jan 13-Mar 13,05/04/2013,87766,"2,420.78",Revenue,NAME REDACTED,57624
Chorley Borough Council,http://statistics.data.gov.uk/id/local-authority/30UE,Community Development,1097,Health Environment & Neighbourhoods,Refuse Collection,20037,Cleaning and Domestic Supplies,5012,Payment for the skip provision for Buckshaw village Clean up 8th Dec 2012,05/04/2013,87826,380.00,Revenue,South Ribble Borough Council,17889
Chorley Borough Council,http://statistics.data.gov.uk/id/local-authority/30UE,Community Development,1097,Governance,Grants To Other Organisations,40127,Grants and Subscriptions,5031,Community Grant Fund 2012/13,12/04/2013,88068,250.00,Revenue,St Josephs Brownies,59146
Chorley Borough Council,http://statistics.data.gov.uk/id/local-authority/30UE,Democratic Represent and  Mgnt,1007,Streetscene & Leisure Contracts,Grounds Maintenance Contractor,20043,Grounds Maintenance Costs,5013,Carryout works to car park at Yarrow Valley Euxton site as requested,24/04/2013,87824,275.00,Revenue,Stafford Estates LTD,22541
Chorley Borough Council,http://statistics.data.gov.uk/id/local-authority/30UE,Democratic Represent and  Mgnt,1007,Streetscene & Leisure Contracts,Playground Equipment,40008,"Equipment, Furniture & Materia",5023,Carryout works Yarrow valley car park Birkacre Road  Coppull as requested,24/04/2013,87824,275.00,Revenue,Stafford Estates LTD,22541
Chorley Borough Council,http://statistics.data.gov.uk/id/local-authority/30UE,Service Management & Support,1009,Streetscene & Leisure Contracts,External Contractor,40198,Miscellaneous Expenses,5034,Reinstate excavation and and retarmac approximatley 20metres of footpath due to damage,24/04/2013,87824,"4,064.00",Revenue,Stafford Estates LTD,22541
Chorley Borough Council,http://statistics.data.gov.uk/id/local-authority/30UE,Corporate Management,1008,Health Environment & Neighbourhoods,External Contractor,40198,Miscellaneous Expenses,5034,Project 21- Scrape off and level plainings at rear of Rangletts Road as per agreement,10/04/2013,87929,"2,530.00",Revenue,Stafford Estates LTD,22541
Chorley Borough Council,http://statistics.data.gov.uk/id/local-authority/30UE,Corporate Management,1008,Health Environment & Neighbourhoods,External Contractor,40198,Miscellaneous Expenses,5034,Project 7- Scrape off and level plainings at rear of Westminster road/Avondale ,10/04/2013,87945,"1,700.00",Revenue,Stafford Estates LTD,22541
Chorley Borough Council,http://statistics.data.gov.uk/id/local-authority/30UE,Capital,Capital,Housing,Grants,3002,Capital Expenditure,Capital,Capital Works - Disbale Facility Grant,12/04/2013,87852,"8,577.80",Capital,Stewart Douglas Building Contractors Ltd,53736
Chorley Borough Council,http://statistics.data.gov.uk/id/local-authority/30UE,Community Development,1097,Policy & Performance,Core Funding Grants,40133,Grants and Subscriptions,5031,Core Funding 2013/14,12/04/2013,87914,"7,000.00",Revenue,Street Pastors,21946
Chorley Borough Council,http://statistics.data.gov.uk/id/local-authority/30UE,Capital,Capital,Housing,Grants,3002,Capital Expenditure,Capital,Disable Works - Disable facility Grant,26/04/2013,88214,"4,905.00",Capital,Stringfellow Bldg Cntrctrs Ltd,17893
Chorley Borough Council,http://statistics.data.gov.uk/id/local-authority/30UE,Capital,Capital,Housing,Grants,3002,Capital Expenditure,Capital,Capital Works - Disable Facility Grnat,26/04/2013,88215,"3,509.00",Capital,Stringfellow Bldg Cntrctrs Ltd,17893
Chorley Borough Council,http://statistics.data.gov.uk/id/local-authority/30UE,Democratic Represent and  Mgnt,1007,Governance,Member Development Programme,17007,Indirect Employee Expenses,5002,1-2-1 coaching with NAME REDACTED on 1 March 2013 and 12 April 2013,19/04/2013,88141,560.00,Revenue,Successful Speeches,51627
Chorley Borough Council,http://statistics.data.gov.uk/id/local-authority/30UE,Capital,Capital,Streetscene & Leisure Contracts,Consultants Fees,3025,Capital Expenditure,Capital,"Topographical survey at Cottage Fields, Eaves Green",24/04/2013,88228,525.00,Capital,Survey Operations Ltd,55910
Chorley Borough Council,http://statistics.data.gov.uk/id/local-authority/30UE,Housing Benefit Administration,1077,"Customer, ICT & Transactional",Stationery,40050,"Printing, Stationery & General",5026,1000 benefit claim forms in conjunction with ribble valley.,24/04/2013,87803,320.00,Revenue,System Cell LTD,21703
Chorley Borough Council,http://statistics.data.gov.uk/id/local-authority/30UE,Service Management & Support,1009,Streetscene & Leisure Contracts,Supplies & Consumables -Street Cleansing,40235,"Equipment, Furniture & Materia",5023,Supply Two ply toilet roll centre feed soft perforated 150metres No PAP443,24/04/2013,88062,44.00,Revenue,System Hygiene Ltd,16572
Chorley Borough Council,http://statistics.data.gov.uk/id/local-authority/30UE,Service Management & Support,1009,Streetscene & Leisure Contracts,Supplies & Consumables -Street Cleansing,40235,"Equipment, Furniture & Materia",5023,Supply Bleach 5litre No DIS100,24/04/2013,88062,1.58,Revenue,System Hygiene Ltd,16572
Chorley Borough Council,http://statistics.data.gov.uk/id/local-authority/30UE,Service Management & Support,1009,Streetscene & Leisure Contracts,Supplies & Consumables -Street Cleansing,40235,"Equipment, Furniture & Materia",5023,Supply Solid air fresh BLOCK No AIR200,24/04/2013,88062,21.60,Revenue,System Hygiene Ltd,16572
Chorley Borough Council,http://statistics.data.gov.uk/id/local-authority/30UE,Service Management & Support,1009,Streetscene & Leisure Contracts,Supplies & Consumables -Street Cleansing,40235,"Equipment, Furniture & Materia",5023,Supply proffessional mop and bucket and handle No MOP090,24/04/2013,88062,7.44,Revenue,System Hygiene Ltd,16572
Chorley Borough Council,http://statistics.data.gov.uk/id/local-authority/30UE,Service Management & Support,1009,Streetscene & Leisure Contracts,Supplies & Consumables -Street Cleansing,40235,"Equipment, Furniture & Materia",5023,Supply pine disinfectant own brand No Dis140,24/04/2013,88062,11.20,Revenue,System Hygiene Ltd,16572
Chorley Borough Council,http://statistics.data.gov.uk/id/local-authority/30UE,Service Management & Support,1009,Streetscene & Leisure Contracts,Supplies & Consumables -Street Cleansing,40235,"Equipment, Furniture & Materia",5023,Supply wet wipe 176mm x250 150wipes per tub No tub WIP005,24/04/2013,88062,95.20,Revenue,System Hygiene Ltd,16572
Chorley Borough Council,http://statistics.data.gov.uk/id/local-authority/30UE,Service Management & Support,1009,Streetscene & Leisure Contracts,Supplies & Consumables -Street Cleansing,40235,"Equipment, Furniture & Materia",5023,Powdered Latex,24/04/2013,88062,70.00,Revenue,System Hygiene Ltd,16572
Chorley Borough Council,http://statistics.data.gov.uk/id/local-authority/30UE,Community Development,1097,Policy & Performance,Core Funding Grants,40133,Grants and Subscriptions,5031,Core Funding,17/04/2013,88052,"7,000.00",Revenue,The Arts Partnership,18943
Chorley Borough Council,http://statistics.data.gov.uk/id/local-authority/30UE,Homelessness,1075,Housing,Laundry,40042,"Clothing, Uniforms and Laundry",5025,Linen Service at Cotswold Supported Housing (July 2012 - March 2013),05/04/2013,87819,292.70,Revenue,The Sunlight Services Group,20799
Chorley Borough Council,http://statistics.data.gov.uk/id/local-authority/30UE,Unapportionable Central OHeads,1009,Governance,Fixtures & Fittings - Purchase,20027,Fixtures and Fittings,5010,Tie backs for Council Chamber,05/04/2013,87782,416.00,Revenue,Thistle Homes (nw) Ltd,56631
Chorley Borough Council,http://statistics.data.gov.uk/id/local-authority/30UE,Democratic Represent and  Mgnt,1007,Health Environment & Neighbourhoods,Children's Activities,40188,Miscellaneous Expenses,5034,"Range of sports equipment Order placed via email",10/04/2013,87951,901.60,Revenue,Thomas Sports,22407
Chorley Borough Council,http://statistics.data.gov.uk/id/local-authority/30UE,Unapportionable Central OHeads,1009,Chief Executives Office,Postages,40082,Communication and Computing,5028,Mail collection for all departments,05/04/2013,87800,"1,367.88",Revenue,TNT Post North Ltd,21187
Chorley Borough Council,http://statistics.data.gov.uk/id/local-authority/30UE,Unapportionable Central OHeads,1009,Chief Executives Office,Postages,40082,Communication and Computing,5028,Mail collection for all departments,10/04/2013,87987,"1,487.61",Revenue,TNT Post North Ltd,21187
Chorley Borough Council,http://statistics.data.gov.uk/id/local-authority/30UE,Unapportionable Central OHeads,1009,Chief Executives Office,Postages,40082,Communication and Computing,5028,Mail collection for all departments,10/04/2013,87988,"1,370.03",Revenue,TNT Post North Ltd,21187
Chorley Borough Council,http://statistics.data.gov.uk/id/local-authority/30UE,Unapportionable Central OHeads,1009,Chief Executives Office,Postages,40082,Communication and Computing,5028,Mail collection for all departments,10/04/2013,87989,"1,270.08",Revenue,TNT Post North Ltd,21187
Chorley Borough Council,http://statistics.data.gov.uk/id/local-authority/30UE,Unapportionable Central OHeads,1009,Chief Executives Office,Postages,40082,Communication and Computing,5028,Mail collection for all departments,10/04/2013,87990,"2,218.84",Revenue,TNT Post North Ltd,21187
Chorley Borough Council,http://statistics.data.gov.uk/id/local-authority/30UE,Unapportionable Central OHeads,1009,Chief Executives Office,Postages,40082,Communication and Computing,5028,Mail collection for all departments,10/04/2013,88003,"1,378.86",Revenue,TNT Post North Ltd,21187
Chorley Borough Council,http://statistics.data.gov.uk/id/local-authority/30UE,Unapportionable Central OHeads,1009,Governance,Furniture - Purchase,40012,"Equipment, Furniture & Materia",5023,3 x tables 800 diameter and 720 height in beech � with the column/trumpet base ZCC80BV,26/04/2013,88229,928.00,Revenue,TOFM Limited  T/A Tailored Office Solutions,57621
Chorley Borough Council,http://statistics.data.gov.uk/id/local-authority/30UE,Service Management & Support,1009,Streetscene & Leisure Contracts,External Contractor,40198,Miscellaneous Expenses,5034,Carryout emergency tree works at Yarrow Valley,10/04/2013,87883,440.00,Revenue,Treescape North West Ltd,17688
Chorley Borough Council,http://statistics.data.gov.uk/id/local-authority/30UE,Service Management & Support,1009,Streetscene & Leisure Contracts,External Contractor,40198,Miscellaneous Expenses,5034,Carryout tree works at Rangletts Rec,10/04/2013,87883,720.00,Revenue,Treescape North West Ltd,17688
Chorley Borough Council,http://statistics.data.gov.uk/id/local-authority/30UE,Service Management & Support,1009,Streetscene & Leisure Contracts,External Contractor,40198,Miscellaneous Expenses,5034,Carryout tree works at Limbrick cricket club ,10/04/2013,87883,270.00,Revenue,Treescape North West Ltd,17688
Chorley Borough Council,http://statistics.data.gov.uk/id/local-authority/30UE,Service Management & Support,1009,Streetscene & Leisure Contracts,External Contractor,40198,Miscellaneous Expenses,5034,Carryout tree works at Jubilee Playing fields ,10/04/2013,87883,410.00,Revenue,Treescape North West Ltd,17688
Chorley Borough Council,http://statistics.data.gov.uk/id/local-authority/30UE,Service Management & Support,1009,Streetscene & Leisure Contracts,External Contractor,40198,Miscellaneous Expenses,5034,Carryout tree works at Harpers Lane Rec ,10/04/2013,87883,320.00,Revenue,Treescape North West Ltd,17688
Chorley Borough Council,http://statistics.data.gov.uk/id/local-authority/30UE,Service Management & Support,1009,Streetscene & Leisure Contracts,External Contractor,40198,Miscellaneous Expenses,5034,Carry tree works at Foxcote Astley Village ,10/04/2013,87883,270.00,Revenue,Treescape North West Ltd,17688
Chorley Borough Council,http://statistics.data.gov.uk/id/local-authority/30UE,Service Management & Support,1009,Streetscene & Leisure Contracts,External Contractor,40198,Miscellaneous Expenses,5034,Carryout tree works at Adlington Cemetery ,10/04/2013,87883,270.00,Revenue,Treescape North West Ltd,17688
Chorley Borough Council,http://statistics.data.gov.uk/id/local-authority/30UE,Service Management & Support,1009,Streetscene & Leisure Contracts,External Contractor,40198,Miscellaneous Expenses,5034,Carryout tree works at Chorley Cemetery ,10/04/2013,87883,"1,440.00",Revenue,Treescape North West Ltd,17688
Chorley Borough Council,http://statistics.data.gov.uk/id/local-authority/30UE,Service Management & Support,1009,Streetscene & Leisure Contracts,Petrol,30005,Direct Transport Costs,5016,Petrol for NJ10 OXG,05/04/2013,87820,9.87,Revenue,Uk Fuels Ltd,57996
Chorley Borough Council,http://statistics.data.gov.uk/id/local-authority/30UE,Service Management & Support,1009,Streetscene & Leisure Contracts,Petrol,30005,Direct Transport Costs,5016,Petrol for NL62 SPZ,05/04/2013,87820,5.79,Revenue,Uk Fuels Ltd,57996
Chorley Borough Council,http://statistics.data.gov.uk/id/local-authority/30UE,Service Management & Support,1009,Streetscene & Leisure Contracts,Petrol,30005,Direct Transport Costs,5016,Petrol for NJ60 KFK,05/04/2013,87820,6.55,Revenue,Uk Fuels Ltd,57996
Chorley Borough Council,http://statistics.data.gov.uk/id/local-authority/30UE,Service Management & Support,1009,Streetscene & Leisure Contracts,Petrol,30005,Direct Transport Costs,5016,Petrol for NL12 OFG,05/04/2013,87820,6.38,Revenue,Uk Fuels Ltd,57996
Chorley Borough Council,http://statistics.data.gov.uk/id/local-authority/30UE,Service Management & Support,1009,Streetscene & Leisure Contracts,Petrol,30005,Direct Transport Costs,5016,Petrol for DK56 JWO,05/04/2013,87820,10.79,Revenue,Uk Fuels Ltd,57996
Chorley Borough Council,http://statistics.data.gov.uk/id/local-authority/30UE,Corporate Management,1008,Streetscene & Leisure Contracts,Petrol,30005,Direct Transport Costs,5016,Petrol for MW53 UJZ,05/04/2013,87820,8.34,Revenue,Uk Fuels Ltd,57996
Chorley Borough Council,http://statistics.data.gov.uk/id/local-authority/30UE,Corporate Management,1008,Streetscene & Leisure Contracts,Petrol,30005,Direct Transport Costs,5016,Petrol for NV60 BVF,05/04/2013,87820,23.16,Revenue,Uk Fuels Ltd,57996
Chorley Borough Council,http://statistics.data.gov.uk/id/local-authority/30UE,Corporate Management,1008,Streetscene & Leisure Contracts,Petrol,30005,Direct Transport Costs,5016,Petrol for PO52 XVV,05/04/2013,87820,44.40,Revenue,Uk Fuels Ltd,57996
Chorley Borough Council,http://statistics.data.gov.uk/id/local-authority/30UE,Service Management & Support,1009,Streetscene & Leisure Contracts,Petrol,30005,Direct Transport Costs,5016,Petrol for NL12 OFG,05/04/2013,87820,16.46,Revenue,Uk Fuels Ltd,57996
Chorley Borough Council,http://statistics.data.gov.uk/id/local-authority/30UE,Service Management & Support,1009,Streetscene & Leisure Contracts,Petrol,30005,Direct Transport Costs,5016,Petrol for MX06 UKJ,05/04/2013,87820,34.98,Revenue,Uk Fuels Ltd,57996
Chorley Borough Council,http://statistics.data.gov.uk/id/local-authority/30UE,Service Management & Support,1009,Streetscene & Leisure Contracts,Petrol,30005,Direct Transport Costs,5016,Petrol for NJ10 OTW,05/04/2013,87820,10.92,Revenue,Uk Fuels Ltd,57996
Chorley Borough Council,http://statistics.data.gov.uk/id/local-authority/30UE,Service Management & Support,1009,Streetscene & Leisure Contracts,Petrol,30005,Direct Transport Costs,5016,Petrol for NL12 ONR,05/04/2013,87820,18.64,Revenue,Uk Fuels Ltd,57996
Chorley Borough Council,http://statistics.data.gov.uk/id/local-authority/30UE,Service Management & Support,1009,Streetscene & Leisure Contracts,Petrol,30005,Direct Transport Costs,5016,Petrol for NL12 OFG,05/04/2013,87820,9.94,Revenue,Uk Fuels Ltd,57996
Chorley Borough Council,http://statistics.data.gov.uk/id/local-authority/30UE,Service Management & Support,1009,Streetscene & Leisure Contracts,Petrol,30005,Direct Transport Costs,5016,Petrol for NJ10 OXP,05/04/2013,87820,12.22,Revenue,Uk Fuels Ltd,57996
Chorley Borough Council,http://statistics.data.gov.uk/id/local-authority/30UE,Service Management & Support,1009,Streetscene & Leisure Contracts,Petrol,30005,Direct Transport Costs,5016,Petrol for NJ60 KFK,05/04/2013,87820,13.57,Revenue,Uk Fuels Ltd,57996
Chorley Borough Council,http://statistics.data.gov.uk/id/local-authority/30UE,Service Management & Support,1009,Streetscene & Leisure Contracts,Petrol,30005,Direct Transport Costs,5016,Petrol for NL12 ONR,05/04/2013,87820,8.52,Revenue,Uk Fuels Ltd,57996
Chorley Borough Council,http://statistics.data.gov.uk/id/local-authority/30UE,Service Management & Support,1009,Streetscene & Leisure Contracts,Petrol,30005,Direct Transport Costs,5016,Petrol for DK55 EEF,05/04/2013,87820,18.93,Revenue,Uk Fuels Ltd,57996
Chorley Borough Council,http://statistics.data.gov.uk/id/local-authority/30UE,Democratic Represent and  Mgnt,1007,Streetscene & Leisure Contracts,Petrol,30005,Direct Transport Costs,5016,Petrol for KR09 YPZ,05/04/2013,87820,11.28,Revenue,Uk Fuels Ltd,57996
Chorley Borough Council,http://statistics.data.gov.uk/id/local-authority/30UE,Democratic Represent and  Mgnt,1007,Streetscene & Leisure Contracts,Use Of Transport - Mayoral Car,30015,Transport Recharges,5017,Petrol for PK11 UWG,05/04/2013,87820,90.96,Revenue,Uk Fuels Ltd,57996
Chorley Borough Council,http://statistics.data.gov.uk/id/local-authority/30UE,Unapportionable Central OHeads,1009,HR & Org. Development,Miscellaneous Expenses,40200,Miscellaneous Expenses,5034,Level 1-5,24/04/2013,88166,"1,450.55",Revenue,UK Healthcare (BDHSC),17241
Chorley Borough Council,http://statistics.data.gov.uk/id/local-authority/30UE,Control Accounts,Control,HR & Org. Development,General Balances,100,Balance Sheet,Balance,Top Ups,24/04/2013,88166,313.93,Revenue,UK Healthcare (BDHSC),17241
Chorley Borough Council,http://statistics.data.gov.uk/id/local-authority/30UE,Precepts and Collection Fund,Precepts,"Customer, ICT & Transactional",Parish Precept,2040,Precepts & Collection Fund,Precept,Precept,10/04/2013,87966,"5,725.00",Revenue,Ulnes Walton Parish Council,16210
Chorley Borough Council,http://statistics.data.gov.uk/id/local-authority/30UE,Precepts and Collection Fund,Precepts,"Customer, ICT & Transactional",Parish Precept,2040,Precepts & Collection Fund,Precept,Top Up,10/04/2013,87966,205.00,Revenue,Ulnes Walton Parish Council,16210
Chorley Borough Council,http://statistics.data.gov.uk/id/local-authority/30UE,Service Management & Support,1009,Streetscene & Leisure Contracts,Water - Metered Supplies,20022,Water Services,5009,Standpipe,05/04/2013,87752,456.30,Revenue,United Utilites (Standpipe Invoices Only),20701
Chorley Borough Council,http://statistics.data.gov.uk/id/local-authority/30UE,Homelessness,1075,Housing,Water - Metered Supplies,20022,Water Services,5009,Water and Waste water @ Cotswodl House,10/04/2013,87859,975.44,Revenue,United Utilities Water Plc,17926
Chorley Borough Council,http://statistics.data.gov.uk/id/local-authority/30UE,Democratic Represent and  Mgnt,1007,Streetscene & Leisure Contracts,Water - Metered Supplies,20022,Water Services,5009,Water and Waste Water @ Astley PArk Village Centre,17/04/2013,88094,363.29,Revenue,United Utilities Water Plc,17926
Chorley Borough Council,http://statistics.data.gov.uk/id/local-authority/30UE,Democratic Represent and  Mgnt,1007,Streetscene & Leisure Contracts,Water - Metered Supplies,20022,Water Services,5009,Waste water and water Adtley hall,26/04/2013,88233,"1,936.30",Revenue,United Utilities Water Plc,17926
Chorley Borough Council,http://statistics.data.gov.uk/id/local-authority/30UE,Unapportionable Central OHeads,1009,Governance,Mayors Medals,40029,"Equipment, Furniture & Materia",5023,"Retiring Mayor Medal in Silver Gilt including red ribbon, case and engraving ",17/04/2013,88086,671.30,Revenue,Vaughtons,18001
Chorley Borough Council,http://statistics.data.gov.uk/id/local-authority/30UE,Unapportionable Central OHeads,1009,Governance,Mayors Medals,40029,"Equipment, Furniture & Materia",5023,"Retiring Mayoress Medal in silver gilt including red ribbon, case ",17/04/2013,88086,342.60,Revenue,Vaughtons,18001
Chorley Borough Council,http://statistics.data.gov.uk/id/local-authority/30UE,Unapportionable Central OHeads,1009,Governance,Mayors Medals,40029,"Equipment, Furniture & Materia",5023,Carriage,17/04/2013,88086,9.75,Revenue,Vaughtons,18001
Chorley Borough Council,http://statistics.data.gov.uk/id/local-authority/30UE,Corporate Management,1008,Streetscene & Leisure Contracts,Unitary Payment(S),50009,Private Contractors,5042,Provision of waste collection and ancillary services for June 2012 to March 2013 inc.,10/04/2013,87908,"251,040.17",Revenue,Veolia ES (UK) Ltd,20748
Chorley Borough Council,http://statistics.data.gov.uk/id/local-authority/30UE,Precepts and Collection Fund,Precepts,"Customer, ICT & Transactional",Parish Precept,2040,Precepts & Collection Fund,Precept,Precept,10/04/2013,87965,"11,568.00",Revenue,Wheelton Parish Council,16189
Chorley Borough Council,http://statistics.data.gov.uk/id/local-authority/30UE,Precepts and Collection Fund,Precepts,"Customer, ICT & Transactional",Parish Precept,2040,Precepts & Collection Fund,Precept,Top Up,10/04/2013,87965,432.00,Revenue,Wheelton Parish Council,16189
Chorley Borough Council,http://statistics.data.gov.uk/id/local-authority/30UE,Democratic Represent and  Mgnt,1007,Streetscene & Leisure Contracts,Consultants` Fees,40077,Services,5027,"Curatorial consultant fees - March 2013VAT included in price.",12/04/2013,88033,583.30,Revenue,Whittle and Draper Fine Art,52271
Chorley Borough Council,http://statistics.data.gov.uk/id/local-authority/30UE,Precepts and Collection Fund,Precepts,"Customer, ICT & Transactional",Parish Precept,2040,Precepts & Collection Fund,Precept,Parish Precept,10/04/2013,87964,"31,965.00",Revenue,Whittle-le-Woods Parish Council,18602
Chorley Borough Council,http://statistics.data.gov.uk/id/local-authority/30UE,Precepts and Collection Fund,Precepts,"Customer, ICT & Transactional",Parish Precept,2040,Precepts & Collection Fund,Precept,Parish Precept,10/04/2013,87963,"27,787.00",Revenue,Withnell Parish Council,16211
Chorley Borough Council,http://statistics.data.gov.uk/id/local-authority/30UE,Precepts and Collection Fund,Precepts,"Customer, ICT & Transactional",Parish Precept,2040,Precepts & Collection Fund,Precept,Top Up,10/04/2013,87963,"1,483.00",Revenue,Withnell Parish Council,16211
Chorley Borough Council,http://statistics.data.gov.uk/id/local-authority/30UE,Private Sector HSG Renewal,1073,Housing,Miscellaneous Expenses,40200,Miscellaneous Expenses,5034,Capital Works - Disable Facility Grant,12/04/2013,88048,500.00,Revenue,Woods Windows,18139
Chorley Borough Council,http://statistics.data.gov.uk/id/local-authority/30UE,Culture & Heritage,1036,Streetscene & Leisure Contracts,Vehicle Maintenance,30045,Direct Transport Costs,5016,Carryout pre MOT inspection. Carryout welding repairs new rear brake shoes ,10/04/2013,88010,910.34,Revenue,Wrekamendid Services Ltd,21188
Chorley Borough Council,http://statistics.data.gov.uk/id/local-authority/30UE,Culture & Heritage,1036,Streetscene & Leisure Contracts,Vehicle Maintenance,30045,Direct Transport Costs,5016,Carryout pre MOT inspection. Carryout welding repairs new rear brake shoes ,10/04/2013,88010,30.00,Revenue,Wrekamendid Services Ltd,21188
Chorley Borough Council,http://statistics.data.gov.uk/id/local-authority/30UE,Service Management & Support,1009,Streetscene & Leisure Contracts,Supplies-Grounds Maintenance,40025,"Equipment, Furniture & Materia",5023,Supply 20 x 120 litre as per previous Chorley Council specification with Logo`s fitted ,05/04/2013,87736,"3,999.80",Revenue,Wybone Ltd,18097
Chorley Borough Council,http://statistics.data.gov.uk/id/local-authority/30UE,Corporate Management,1008,Streetscene & Leisure Contracts,Other Contributions,40145,Grants and Subscriptions,5031,Transort services provided under Warm Homes Healthy People scheme 2012-13,10/04/2013,87947,"1,571.80",Revenue,Yellow Cabs (North West Ltd),52276
Chorley Borough Council,http://statistics.data.gov.uk/id/local-authority/30UE,Community Development,1097,Policy & Performance,Core Funding Grants,40133,Grants and Subscriptions,5031,Core Funding 2013/14,24/04/2013,88147,"4,281.00",Revenue,Youre Amazing CIC,49684
Chorley Borough Council,http://statistics.data.gov.uk/id/local-authority/30UE,Economic Development,1096,Economic Development,Grants To Other Organisations,40127,Grants and Subscriptions,5031,Starting in business Grant - Capital Expenditure,24/04/2013,88217,"1,000.00",Revenue,Zinge Industries,59234
